Workbook

Sheet interference
C1: INTERFERENCE | AD1: Y St A.s | AE1: X ug /L | AF1: Y matrix
C2: Multiplicative | AD2: 0 | AE2: 0 | AF2: =AD2*0.1*$D$3+0.01*$D$7 -> 0.08
C3: b1 (10) | D3: 10 | AD3: 0.081 | AE3: 20 | AF3: 0.161
AA4: =SLOPE(AF1:AF7,AE1:AE7) -> 0.003993791209 | AD4: 0.197 | AE4: 50 | AF4: 0.277
H5: ∆ (Cst-Cmx) = | I5: =I9-I8 -> 20.03406355 | J5: ppb | AA5: =INTERCEPT(AF3:AF7,AE3:AE7) -> 0.08020731707 | AD5: 0.4055 | AE5: 100 | AF5: 0.4855
C6: Additive | H6: ∆ %= | I6: =(I9-I8)/I9 -> 0.09699407094 | AD6: 0.5925 | AE6: 150 | AF6: 0.6725
C7: b0 (0) | D7: 8 | X7: 0.01 | AD7: 0.8015 | AE7: 200 | AF7: 0.8815
H8: C_st= | I8: =AC15 -> 186.5152992 | J8: ppb | AD8: =SLOPE(AD3:AD7,AE3:AE7) -> 0.003993198874 | AE8: b1 и b1m | AF8: =SLOPE(AF3:AF7,AE3:AE7) -> 0.003993198874
H9: C_mx= | I9: =AC18 -> 206.5493628 | J9: ppb | AD9: =INTERCEPT(AD3:AD7,AE3:AE7) -> 0.0002073170732 | AE9: b0 и b0m | AF9: =INTERCEPT(AF3:AF7,AE3:AE7) -> 0.08020731707
AB12: 275
AB13: Y samp | AC13: X | AD13: Y1 | AE13: X | AF13: Y2
AB14: =X7*0.3*AB12 -> 0.825 | AC14: 0.01 | AD14: =AB14 -> 0.825 | AE14: =AC15 -> 186.5152992 | AF14: 0
AC15: =(AB14-AF9)/AF8 -> 186.5152992 | AD15: =AB14 -> 0.825 | AE15: =AC15 -> 186.5152992 | AF15: =AB14 -> 0.825
AB16: Y samp | AC16: X | AD16: Y1 | AE16: X | AF16: Y2
AB17: =AB14 -> 0.825 | AC17: 0.01 | AD17: =AB17 -> 0.825 | AE17: =AC18 -> 206.5493628 | AF17: 0
AC18: =(AB17-AD9)/AD8 -> 206.5493628 | AD18: =AB17 -> 0.825 | AE18: =AC18 -> 206.5493628 | AF18: =AB17 -> 0.825
AF20: =CORREL(AD2:AD7,AE2:AE7) -> 0.9999002491
AF21: =AF20*AF20 -> 0.9998005081
X679: Разработка за учебни цели ВК

Sheet Compare with CRM
A1: Compare with CRM
A3: 100 | B3: M1= | C3: =F15 -> 11.8 | D3: M2= | E3: =C15 -> 12.9 | V3: X | W3: X1 | X3: P(X1) | Y3: X2 | Z3: P(X2) | AD3: -4 | AE3: =AD3+$C$3 -> 7.8 | AF3: =NORMDIST(AE3,$C$3,$C$4,1) -> 1.607631364e-16 | AG3: =NORMDIST(AE3,$C$3,$C$4,FALSE) -> 2.718452287e-15
B4: S1= | C4: =F18 -> 0.4898979486 | D4: S2= | E4: =C18 -> 0.45 | V4: -4 | W4: =V4+$C$3 -> 7.8 | X4: =NORMDIST(W4,$C$3,$C$4,0) -> 2.718452287e-15 | Y4: =V4+$E$3 -> 8.9 | Z4: =NORMDIST(Y4,$E$3,$E$4,0) -> 6.171414076e-18 | AD4: -3.8 | AE4: =AD4+$C$3 -> 8 | AF4: =NORMDIST(AE4,$C$3,$C$4,1) -> 4.357788138e-15 | AG4: =NORMDIST(AE4,$C$3,$C$4,FALSE) -> 7.010980853e-14
R5: -3.8 | S5: =R5+$C$3 -> 8 | T5: =NORMDIST(S5,$C$3,$C$4,0) -> 7.010980853e-14 | U5: =R5+$E$3 -> 9.1 | V5: =NORMDIST(U5,$E$3,$E$4,0) -> 2.905512118e-16 | Z5: -3.4 | AA5: =Z5+$C$3 -> 8.4 | AB5: =NORMDIST(AA5,$C$3,$C$4,1) -> 1.957435952e-12 | AC5: =NORMDIST(AA5,$C$3,$C$4,FALSE) -> 2.828431547e-11
G6: u_Δ = | H6: =SQRT(F18^2+C18^2) -> 0.6652067348 | V6: -3.7 | W6: =V6+$C$3 -> 8.1 | X6: =NORMDIST(W6,$C$3,$C$4,0) -> 3.344751899e-13 | Y6: =V6+$E$3 -> 9.2 | Z6: =NORMDIST(Y6,$E$3,$E$4,0) -> 1.85127839e-15 | AD6: -3.2 | AE6: =AD6+$C$3 -> 8.6 | AF6: =NORMDIST(AE6,$C$3,$C$4,1) -> 3.245450608e-11 | AG6: =NORMDIST(AE6,$C$3,$C$4,FALSE) -> 4.424411349e-10
V7: -3.6 | W7: 8.2 | X7: =NORMDIST(W7,$C$3,$C$4,0) -> 1.530570835e-12 | Y7: 9.3 | Z7: 1.122726907e-14 | AD7: -3 | AE7: 8.8 | AF7: 4.570649204e-10 | AG7: 5.858452449e-09
V8: -3.5 | W8: 8.3 | X8: 6.718113777e-12 | Y8: 9.4 | Z8: 6.480818957e-14 | AD8: -2.8 | AE8: 9 | AF8: 5.469865918e-09 | AG8: 6.566408655e-08
G9: U_Δ = | H9: =H6*2 -> 1.33041347 | I9: (k=2) | V9: -3.4 | W9: 8.4 | X9: 2.828431547e-11 | Y9: 9.5 | Z9: 3.560729699e-13 | AD9: -2.6 | AE9: 9.2 | AF9: 5.565252785e-08 | AG9: 6.230035072e-07
G10: Δ = | H10: =ABS(C15-F15) -> 1.1 | V10: -3.3 | W10: 8.5 | X10: 1.142216388e-10 | Y10: 9.6 | Z10: 1.862093496e-12 | AD10: -2.4 | AE10: 9.4 | AF10: 4.816785043e-07 | AG10: 5.003462649e-06
A11: 4 | V11: -3.2 | W11: 8.6 | X11: 4.424411349e-10 | Y11: 9.7 | Z11: 9.268667831e-12 | AD11: -2.2 | AE11: 9.6 | AF11: 3.548954165e-06 | AG11: 3.401483895e-05
V12: -3.1 | W12: 8.7 | X12: 1.643868241e-09 | Y12: 9.8 | Z12: 4.391233312e-11 | AD12: -2 | AE12: 9.8 | AF12: 2.22785453e-05 | AG12: 0.0001957418833
V13: -3 | W13: 8.8 | X13: 5.858452449e-09 | Y13: 9.9 | Z13: 1.980200042e-10 | AD13: -1.8 | AE13: 10 | AF13: 0.000119281727 | AG13: 0.0009534912064
B14: CRM | E14: Measured | V14: -2.6 | W14: 9.2 | X14: 6.230035072e-07 | Y14: 10.3 | Z14: 4.997270594e-08 | AD14: -1 | AE14: 10.8 | AF14: 0.02061341667 | AG14: 0.1013968059
B15: X_CRM (12.9)= | C15: 12.9 | E15: X_m(14.3)= | F15: =G15/10 -> 11.8 | G15: 118 | V15: -2.5 | W15: 9.3 | X15: 1.802720421e-06 | Y15: 10.4 | Z15: 1.760443997e-07 | AD15: -0.8 | AE15: 11 | AF15: 0.05123521743 | AG15: 0.2146570397
A16: 9 | B16: U_CRM (0.9)= | C16: =A16/10 -> 0.9 | D16: 12 | E16: Sm (1.8) = | F16: =D16/10 -> 1.2 | V16: -2.4 | W16: 9.4 | X16: 5.003462649e-06 | Y16: 10.5 | Z16: 5.90289313e-07 | AD16: -0.6 | AE16: 11.2 | AF16: 0.110335681 | AG16: 0.384665807
B17: k_CRM= | C17: 2 | E17: N= | F17: 6 | P17: M(X) на BL | T17: M(X) на проба | V17: -2.3 | W17: 9.5 | X17: 1.332040233e-05 | Y17: 10.6 | Z17: 1.88391362e-06 | AD17: -0.4 | AE17: 11.4 | AF17: 0.2071080891 | AG17: 0.5834983303
B18: u_CRM= | C18: =C16/C17 -> 0.45 | E18: u_m= | F18: =F16/SQRT(F17) -> 0.4898979486 | N18: Граница -бар | P18: =$C$3 -> 11.8 | Q18: 0 | R18: 10 | S18: 0 | T18: =$E$3 -> 12.9 | U18: 0 | V18: -2.2 | W18: 9.6 | X18: 3.401483895e-05 | Y18: 10.7 | Z18: 5.72282427e-06 | AD18: -0.2 | AE18: 11.6 | AF18: 0.3415456992 | AG18: 0.7492266868
N19: 1 | P19: =$C$3 -> 11.8 | Q19: =MAX(X4:X140) -> 0.8143375198 | R19: =$R$18 -> 10 | S19: 0.1 | T19: =$E$3 -> 12.9 | U19: =MAX(Z4:Z140) -> 0.8865384009 | V19: -2.1 | W19: 9.7 | X19: 8.33151331e-05 | Y19: 10.8 | Z19: 1.65467686e-05 | AD19: 0 | AE19: 11.8 | AF19: 0.5 | AG19: 0.8143375198
B20: =IF(H10<H9,"X_lab is in compliance with X_CRM","X_lab is NOT in a compliance with X_CRM") -> X_lab is in compliance with X_CRM | N20: 2 | R20: =$R$18 -> 10 | S20: 0.2 | V20: -2 | W20: 9.8 | X20: 0.0001957418833 | Y20: 10.9 | Z20: 4.553751588e-05 | AD20: 0.2 | AE20: 12 | AF20: 0.6584543008 | AG20: 0.7492266868
N21: 3 | R21: =$R$18 -> 10 | S21: 0.3 | V21: -1.9 | W21: 9.9 | X21: 0.0004411111433 | Y21: 11 | Z21: 0.0001192830779 | AD21: 0.4 | AE21: 12.2 | AF21: 0.7928919109 | AG21: 0.5834983303
N22: 4 | R22: =$R$18 -> 10 | S22: 0.4 | V22: -1.8 | W22: 10 | X22: 0.0009534912064 | Y22: 11.1 | Z22: 0.0002974005017 | AD22: 0.6 | AE22: 12.4 | AF22: 0.889664319 | AG22: 0.384665807
N23: 5 | R23: =$R$18 -> 10 | S23: 0.5 | V23: -1.7 | W23: 10.1 | X23: 0.00197692299 | Y23: 11.2 | Z23: 0.0007057614225 | AD23: 0.8 | AE23: 12.6 | AF23: 0.9487647826 | AG23: 0.2146570397
N24: 6 | V24: -1.6 | W24: 10.2 | X24: 0.003931580824 | Y24: 11.3 | Z24: 0.001594143797 | AD24: 1 | AE24: 12.8 | AF24: 0.9793865833 | AG24: 0.1013968059
N25: 7 | V25: -1.5 | W25: 10.3 | X25: 0.007499789276 | Y25: 11.4 | Z25: 0.003427286658 | AD25: 1.2 | AE25: 13 | AF25: 0.9928470608 | AG25: 0.04054347777
B26: "=IF(H10<H9,"X_lab is in compliance with X_CRM","X_lab is NOT in a compliance with X_CRM") | N26: 8 | V26: -1.4 | W26: 10.4 | X26: 0.01372256544 | Y26: 11.5 | Z26: 0.007013369592 | AD26: 1.4 | AE26: 13.2 | AF26: 0.9978666376 | AG26: 0.01372256544
N27: 9 | V27: -1.3 | W27: 10.5 | X27: 0.02408385238 | Y27: 11.6 | Z27: 0.0136601787 | AD27: 1.6 | AE27: 13.4 | AF27: 0.9994545824 | AG27: 0.003931580824
N28: 10 | V28: -1.2 | W28: 10.6 | X28: 0.04054347777 | Y28: 11.7 | Z28: 0.02532441339 | AD28: 1.8 | AE28: 13.6 | AF28: 0.9998807183 | AG28: 0.0009534912064
V29: -1.1 | W29: 10.7 | X29: 0.06546669829 | Y29: 11.8 | Z29: 0.04468644094 | AD29: 2 | AE29: 13.8 | AF29: 0.9999777215 | AG29: 0.0001957418833
V30: -1 | W30: 10.8 | X30: 0.1013968059 | Y30: 11.9 | Z30: 0.07505255786 | AD30: 2.2 | AE30: 14 | AF30: 0.999996451 | AG30: 3.401483895e-05
V31: -0.9 | W31: 10.9 | X31: 0.1506372944 | Y31: 12 | Z31: 0.1199799256 | AD31: 2.4 | AE31: 14.2 | AF31: 0.9999995183 | AG31: 5.003462649e-06
V32: -0.8 | W32: 11 | X32: 0.2146570397 | Y32: 12.1 | Z32: 0.1825597521 | AD32: 2.6 | AE32: 14.4 | AF32: 0.9999999443 | AG32: 6.230035072e-07
V33: -0.7 | W33: 11.1 | X33: 0.2934013862 | Y33: 12.2 | Z33: 0.2643959787 | AD33: 2.8 | AE33: 14.6 | AF33: 0.9999999945 | AG33: 6.566408655e-08
V34: -0.6 | W34: 11.2 | X34: 0.384665807 | Y34: 12.3 | Z34: 0.3644668326 | AD34: 3 | AE34: 14.8 | AF34: 0.9999999995 | AG34: 5.858452449e-09
V35: -0.5 | W35: 11.3 | X35: 0.4837371063 | Y35: 12.4 | Z35: 0.4782054689 | AD35: 3.2 | AE35: 15 | AF35: 1 | AG35: 4.424411349e-10
V36: -0.4 | W36: 11.4 | X36: 0.5834983303 | Y36: 12.5 | Z36: 0.597206359 | AD36: 3.4 | AE36: 15.2 | AF36: 1 | AG36: 2.828431547e-11
V37: -0.3 | W37: 11.5 | X37: 0.675109516 | Y37: 12.6 | Z37: 0.7098844567 | AD37: 3.6 | AE37: 15.4 | AF37: 1 | AG37: 1.530570835e-12
V38: -0.2 | W38: =V38+$C$3 -> 11.6 | X38: 0.7492266868 | Y38: =V38+$E$3 -> 12.7 | Z38: =NORMDIST(Y38,$E$3,$E$4,0) -> 0.8031640664 | AD38: 3.8 | AE38: 15.6 | AF38: =NORMDIST(AE38,$C$3,$C$4,1) -> 1 | AG38: 7.010980853e-14
V39: -0.1 | W39: 11.7 | X39: 0.7975476565 | Y39: 12.8 | Z39: 0.8649165982 | AD39: 4 | AE39: 15.8 | AF39: 1 | AG39: 2.718452287e-15
V40: 0 | W40: 11.8 | X40: 0.8143375198 | Y40: 12.9 | Z40: 0.8865384009 | AD40: -4 | AE40: =AD40+$E$3 -> 8.9 | AF40: 1.613625738e-09 | AG40: =NORMDIST(AE40,$E$3,$E$4,FALSE) -> 6.171414076e-18
V41: 0.1 | W41: 11.9 | X41: 0.7975476565 | Y41: 13 | Z41: 0.8649165982 | AD41: -3.8 | AE41: 9.1 | AF41: 1.780439685e-08 | AG41: 2.905512118e-16
V42: 0.2 | W42: 12 | X42: 0.7492266868 | Y42: 13.1 | Z42: 0.8031640664 | AD42: -3.6 | AE42: 9.3 | AF42: 1.670639556e-07 | AG42: 1.122726907e-14
V43: 0.3 | W43: 12.1 | X43: 0.675109516 | Y43: 13.2 | Z43: 0.7098844567 | AD43: -3.4 | AE43: 9.5 | AF43: 1.333977297e-06 | AG43: 3.560729699e-13
V44: 0.4 | W44: 12.2 | X44: 0.5834983303 | Y44: 13.3 | Z44: 0.597206359 | AD44: -3.2 | AE44: 9.7 | AF44: 9.071139782e-06 | AG44: 9.268667831e-12
V45: 0.5 | W45: 12.3 | X45: 0.4837371063 | Y45: 13.4 | Z45: 0.4782054689 | AD45: -3 | AE45: 9.9 | AF45: 5.258177702e-05 | AG45: 1.980200042e-10
V46: 0.6 | W46: 12.4 | X46: 0.384665807 | Y46: 13.5 | Z46: 0.3644668326 | AD46: -2.8 | AE46: 10.1 | AF46: 0.0002601221738 | AG46: 3.472276076e-09
V47: 0.7 | W47: 12.5 | X47: 0.2934013862 | Y47: 13.6 | Z47: 0.2643959787 | AD47: -2.6 | AE47: 10.3 | AF47: 0.001099823531 | AG47: 4.997270594e-08
V48: 0.8 | W48: 12.6 | X48: 0.2146570397 | Y48: 13.7 | Z48: 0.1825597521 | AD48: -2.4 | AE48: 10.5 | AF48: 0.003981744603 | AG48: 5.90289313e-07
V49: 0.9 | W49: 12.7 | X49: 0.1506372944 | Y49: 13.8 | Z49: 0.1199799256 | AD49: -2.2 | AE49: 10.7 | AF49: 0.01237233602 | AG49: 5.72282427e-06
V50: 1 | W50: 12.8 | X50: 0.1013968059 | Y50: 13.9 | Z50: 0.07505255786 | AD50: -2 | AE50: 10.9 | AF50: 0.03309628986 | AG50: 4.553751588e-05
V51: 1.1 | W51: 12.9 | X51: 0.06546669829 | Y51: 14 | Z51: 0.04468644094 | AD51: -1.8 | AE51: 11.1 | AF51: 0.07652094208 | AG51: 0.0002974005017
V52: 1.2 | W52: 13 | X52: 0.04054347777 | Y52: 14.1 | Z52: 0.02532441339 | AD52: -1.6 | AE52: 11.3 | AF52: 0.153717083 | AG52: 0.001594143797
V53: 1.3 | W53: 13.1 | X53: 0.02408385238 | Y53: 14.2 | Z53: 0.0136601787 | AD53: -1.4 | AE53: 11.5 | AF53: 0.2701456873 | AG53: 0.007013369592
V54: 1.4 | W54: 13.2 | X54: 0.01372256544 | Y54: 14.3 | Z54: 0.007013369592 | AD54: -1.2 | AE54: 11.7 | AF54: 0.4191282432 | AG54: 0.02532441339
V55: 1.5 | W55: 13.3 | X55: 0.007499789276 | Y55: 14.4 | Z55: 0.003427286658 | AD55: -1 | AE55: 11.9 | AF55: 0.5808717568 | AG55: 0.07505255786
V56: 1.6 | W56: 13.4 | X56: 0.003931580824 | Y56: 14.5 | Z56: 0.001594143797 | AD56: -0.8 | AE56: 12.1 | AF56: 0.7298543127 | AG56: 0.1825597521
V57: 1.7 | W57: 13.5 | X57: 0.00197692299 | Y57: 14.6 | Z57: 0.0007057614225 | AD57: -0.6 | AE57: 12.3 | AF57: 0.846282917 | AG57: 0.3644668326
V58: 1.8 | W58: 13.6 | X58: 0.0009534912064 | Y58: 14.7 | Z58: 0.0002974005017 | AD58: -0.4 | AE58: 12.5 | AF58: 0.9234790579 | AG58: 0.597206359
V59: 1.9 | W59: 13.7 | X59: 0.0004411111433 | Y59: 14.8 | Z59: 0.0001192830779 | AD59: -0.2 | AE59: 12.7 | AF59: 0.9669037101 | AG59: 0.8031640664
V60: 2 | W60: 13.8 | X60: 0.0001957418833 | Y60: 14.9 | Z60: 4.553751588e-05 | AD60: 0 | AE60: 12.9 | AF60: 0.987627664 | AG60: 0.8865384009
V61: 2.1 | W61: 13.9 | X61: 8.33151331e-05 | Y61: 15 | Z61: 1.65467686e-05 | AD61: 0.2 | AE61: 13.1 | AF61: 0.9960182554 | AG61: 0.8031640664
V62: 2.2 | W62: 14 | X62: 3.401483895e-05 | Y62: 15.1 | Z62: 5.72282427e-06 | AD62: 0.4 | AE62: 13.3 | AF62: 0.9989001765 | AG62: 0.597206359
V63: 2.3 | W63: 14.1 | X63: 1.332040233e-05 | Y63: 15.2 | Z63: 1.88391362e-06 | AD63: 0.6 | AE63: 13.5 | AF63: =NORMDIST(AE63,$C$3,$C$4,1) -> 0.9997398778 | AG63: 0.3644668326
V64: 2.4 | W64: 14.2 | X64: 5.003462649e-06 | Y64: 15.3 | Z64: 5.90289313e-07 | AD64: 0.8 | AE64: 13.7 | AF64: 0.9999474182 | AG64: 0.1825597521
V65: 2.5 | W65: =V65+$C$3 -> 14.3 | X65: 1.802720421e-06 | Y65: =V65+$E$3 -> 15.4 | Z65: =NORMDIST(Y65,$E$3,$E$4,0) -> 1.760443997e-07 | AD65: 1 | AE65: 13.9 | AF65: 0.9999909289 | AG65: 0.07505255786
V66: 2.6 | W66: 14.4 | X66: 6.230035072e-07 | Y66: 15.5 | Z66: 4.997270594e-08 | AD66: 1.2 | AE66: 14.1 | AF66: 0.999998666 | AG66: 0.02532441339
V67: 2.7 | W67: 14.5 | X67: 2.065175675e-07 | Y67: 15.6 | Z67: 1.350196189e-08 | AD67: 1.4 | AE67: 14.3 | AF67: 0.9999998329 | AG67: 0.007013369592
V68: 2.8 | W68: 14.6 | X68: =NORMDIST(W68,$C$3,$C$4,0) -> 6.566408655e-08 | Y68: 15.7 | Z68: 3.472276076e-09 | AD68: 1.6 | AE68: 14.5 | AF68: 0.9999999822 | AG68: 0.001594143797
V69: 2.9 | W69: 14.7 | X69: 2.002641492e-08 | Y69: 15.8 | Z69: 8.499335587e-10 | AD69: 1.8 | AE69: 14.7 | AF69: 0.9999999984 | AG69: 0.0002974005017
V70: 3 | W70: 14.8 | X70: 5.858452449e-09 | Y70: 15.9 | Z70: 1.980200042e-10 | AD70: 2 | AE70: 14.9 | AF70: 0.9999999999 | AG70: 4.553751588e-05
V71: 3.1 | W71: 14.9 | X71: 1.643868241e-09 | Y71: 16 | Z71: 4.391233312e-11 | AD71: 2.2 | AE71: 15.1 | AF71: 1 | AG71: 5.72282427e-06
V72: 3.2 | W72: 15 | X72: 4.424411349e-10 | Y72: 16.1 | Z72: 9.268667831e-12 | AD72: 2.4 | AE72: 15.3 | AF72: 1 | AG72: 5.90289313e-07
V73: 3.3 | W73: 15.1 | X73: 1.142216388e-10 | Y73: 16.2 | Z73: 1.862093496e-12 | AD73: 2.6 | AE73: 15.5 | AF73: 1 | AG73: 4.997270594e-08
V74: 3.4 | W74: 15.2 | X74: 2.828431547e-11 | Y74: 16.3 | Z74: 3.560729699e-13 | AD74: 2.8 | AE74: 15.7 | AF74: 1 | AG74: 3.472276076e-09
V75: 3.5 | W75: 15.3 | X75: 6.718113777e-12 | Y75: 16.4 | Z75: 6.480818957e-14 | AD75: 3 | AE75: 15.9 | AF75: 1 | AG75: 1.980200042e-10
V76: 3.6 | W76: 15.4 | X76: 1.530570835e-12 | Y76: 16.5 | Z76: 1.122726907e-14 | AD76: 3.2 | AE76: 16.1 | AF76: 1 | AG76: 9.268667831e-12
V77: 3.7 | W77: 15.5 | X77: 3.344751899e-13 | Y77: 16.6 | Z77: 1.85127839e-15 | AD77: 3.4 | AE77: 16.3 | AF77: 1 | AG77: 3.560729699e-13
V78: 3.8 | W78: 15.6 | X78: 7.010980853e-14 | Y78: 16.7 | Z78: 2.905512118e-16 | AD78: 3.6 | AE78: 16.5 | AF78: 1 | AG78: 1.122726907e-14
V79: 3.9 | W79: 15.7 | X79: 1.409607006e-14 | Y79: 16.8 | Z79: 4.340372563e-17 | AD79: 3.8 | AE79: 16.7 | AF79: 1 | AG79: 2.905512118e-16
V80: 4 | W80: 15.8 | X80: 2.718452287e-15 | Y80: 16.9 | Z80: 6.171414076e-18 | AD80: 4 | AE80: 16.9 | AF80: 1 | AG80: 6.171414076e-18
V81: 4.1 | W81: 15.9 | X81: 5.028631096e-16 | Y81: 17 | Z81: 8.352100719e-19
V82: 4.2 | W82: 16 | X82: 8.922411214e-17 | Y82: 17.1 | Z82: 1.075870794e-19
V83: 4.3 | W83: 16.1 | X83: 1.518515013e-17 | Y83: 17.2 | Z83: 1.319100461e-20
V84: 4.4 | W84: 16.2 | X84: 2.478907615e-18 | Y84: 17.3 | Z84: 1.539391148e-21
V85: 4.5 | W85: 16.3 | X85: 3.881557193e-19 | Y85: 17.4 | Z85: 1.709910806e-22
V86: 4.6 | W86: 16.4 | X86: 5.829831928e-20 | Y86: 17.5 | Z86: 1.80780377e-23
V87: 4.7 | W87: 16.5 | X87: 8.398669195e-21 | Y87: 17.6 | Z87: 1.819208504e-24
V88: 4.8 | W88: 16.6 | X88: 1.160564585e-21 | Y88: 17.7 | Z88: 1.742476886e-25
V89: 4.9 | W89: 16.7 | X89: 1.538269921e-22 | Y89: 17.8 | Z89: 1.588564794e-26
V90: 5 | W90: 16.8 | X90: 1.955690739e-23 | Y90: 17.9 | Z90: 1.378466449e-27
V91: 5.1 | W91: 16.9 | X91: 2.384911165e-24 | Y91: 18 | Z91: 1.138520423e-28
V92: 5.2 | W92: 17 | X92: 2.789643015e-25 | Y92: 18.1 | Z92: 8.950325086e-30
V93: 5.3 | W93: 17.1 | X93: 3.12989272e-26 | Y93: 18.2 | Z93: 6.697151954e-31
V94: 5.4 | W94: 17.2 | X94: 3.368330279e-27 | Y94: 18.3 | Z94: 4.769741635e-32
V95: 5.5 | W95: 17.3 | X95: 3.476996739e-28 | Y95: 18.4 | Z95: 3.233351473e-33
V96: 5.6 | W96: 17.4 | X96: 3.44269298e-29 | Y96: 18.5 | Z96: 2.086240327e-34
V97: 5.7 | W97: 17.5 | X97: 3.269615633e-30 | Y97: 18.6 | Z97: 1.281235947e-35
V98: 5.8 | W98: 17.6 | X98: 2.978513034e-31 | Y98: 18.7 | Z98: 7.489403904e-37
V99: 5.9 | W99: 17.7 | X99: 2.602595684e-32 | Y99: 18.8 | Z99: 4.166954415e-38
V100: 6 | W100: 17.8 | X100: 2.18131458e-33 | Y100: 18.9 | Z100: 2.206701576e-39
V101: 6.1 | W101: 17.9 | X101: 1.753615178e-34 | Y101: 19 | Z101: 1.112299699e-40
V102: 6.2 | W102: 18 | X102: 1.352242825e-35 | Y102: 19.1 | Z102: 5.336461655e-42
V103: 6.3 | W103: 18.1 | X103: 1.000183009e-36 | Y103: 19.2 | Z103: 2.436903465e-43
V104: 6.4 | W104: 18.2 | X104: 7.095919106e-38 | Y104: 19.3 | Z104: 1.059196695e-44
V105: 6.5 | W105: 18.3 | X105: 4.828833553e-39 | Y105: 19.4 | Z105: 4.381958569e-46
V106: 6.6 | W106: 18.4 | X106: 3.151956479e-40 | Y106: 19.5 | Z106: 1.725493296e-47
V107: 6.7 | W107: 18.5 | X107: 1.973433904e-41 | Y107: 19.6 | Z107: 6.467130793e-49
V108: 6.8 | W108: 18.6 | X108: 1.185139177e-42 | Y108: 19.7 | Z108: 2.307083809e-50
V109: 6.9 | W109: 18.7 | X109: 6.826852524e-44 | Y109: 19.8 | Z109: 7.833727443e-52
V110: 7 | W110: 18.8 | X110: 3.772038215e-45 | Y110: 19.9 | Z110: 2.531785464e-53
V111: 7.1 | W111: 18.9 | X111: 1.999107016e-46 | Y111: 20 | Z111: 7.788228875e-55
V112: 7.2 | W112: 19 | X112: 1.016249627e-47 | Y112: 20.1 | Z112: 2.280362384e-56
V113: 7.3 | W113: 19.1 | X113: 4.955290868e-49 | Y113: 20.2 | Z113: 6.355100019e-58
V114: 7.4 | W114: 19.2 | X114: 2.31762038e-50 | Y114: 20.3 | Z114: 1.685754278e-59
V115: 7.5 | W115: 19.3 | X115: 1.039728257e-51 | Y115: 20.4 | Z115: 4.256175328e-61
V116: 7.6 | W116: 19.4 | X116: 4.474059849e-53 | Y116: 20.5 | Z116: 1.022817402e-62
V117: 7.7 | W117: 19.5 | X117: 1.846665043e-54 | Y117: 20.6 | Z117: 2.339537795e-64
V118: 7.8 | W118: 19.6 | X118: 7.311035012e-56 | Y118: 20.7 | Z118: 5.093489107e-66
V119: 7.9 | W119: 19.7 | X119: 2.776348602e-57 | Y119: 20.8 | Z119: 1.055489839e-67
V120: 8 | W120: 19.8 | X120: 1.011284904e-58 | Y120: 20.9 | Z120: 2.08183397e-69
V121: 8.1 | W121: 19.9 | X121: 3.533275076e-60 | Y121: 21 | Z121: 3.908332317e-71
V122: 8.2 | W122: 20 | X122: 1.184092885e-61 | Y122: 21.1 | Z122: 6.983774944e-73
V123: 8.3 | W123: 20.1 | X123: 3.806260343e-63 | Y123: 21.2 | Z123: 1.187797334e-74
V124: 8.4 | W124: 20.2 | X124: 1.173587851e-64 | Y124: 21.3 | Z124: 1.922860668e-76
V125: 8.5 | W125: 20.3 | X125: 3.470860163e-66 | Y125: 21.4 | Z125: 2.962829394e-78
V126: 8.6 | W126: 20.4 | X126: 9.846072403e-68 | Y126: 21.5 | Z126: 4.345290661e-80
V127: 8.7 | W127: 20.5 | X127: 2.679127177e-69 | Y127: 21.6 | Z127: 6.065748208e-82
V128: 8.8 | W128: 20.6 | X128: 6.992428451e-71 | Y128: 21.7 | Z128: 8.059410632e-84
V129: 8.9 | W129: =V129+$C$3 -> 20.7 | X129: 1.75052021e-72 | Y129: =V129+$E$3 -> 21.8 | Z129: =NORMDIST(Y129,$E$3,$E$4,0) -> 1.019237862e-85
V130: 9 | W130: 20.8 | X130: 4.203495858e-74 | Y130: 21.9 | Z130: 1.226877414e-87
V131: 9.1 | W131: 20.9 | X131: 9.68185368e-76 | Y131: 22 | Z131: 1.405659569e-89
V132: 9.2 | W132: 21 | X132: =NORMDIST(W132,$C$3,$C$4,0) -> 2.139000089e-77 | Y132: 22.1 | Z132: 1.532895307e-91
V133: 9.3 | W133: 21.1 | X133: 4.532809705e-79 | Y133: 22.2 | Z133: 1.591102633e-93
V134: 9.4 | W134: 21.2 | X134: 9.213583327e-81 | Y134: 22.3 | Z134: 1.571944662e-95
V135: 9.5 | W135: 21.3 | X135: 1.796362769e-82 | Y135: 22.4 | Z135: 1.478187996e-97
V136: 9.6 | W136: 21.4 | X136: 3.359417031e-84 | Y136: 22.5 | Z136: 1.323047535e-99
V137: 9.7 | W137: 21.5 | X137: 6.026125752e-86 | Y137: 22.6 | Z137: 1.12713149e-101
V138: 9.8 | W138: 21.6 | X138: 1.03685221e-87 | Y138: 22.7 | Z138: 9.139597664e-104
V139: 9.9 | W139: 21.7 | X139: 1.71119665e-89 | Y139: 22.8 | Z139: 7.053959006e-106
V140: 10 | W140: 21.8 | X140: 2.708865124e-91 | Y140: 22.9 | Z140: 5.181937181e-108
U676: Разработка за учебни цели ВК

Sheet Conformity Pb in milk
A1: Milk conformity assessment ( Pb in milk EC No 1881/2006) | K1: k= | L1: 2
B2: Aver= | C2: =0.1*G2 -> 16.1 | D2: ug/L | G2: 161 | AM2: x | AN2: x | AO2: P(x) | AP2: F(x) | AR2: x | AS2: P(x)
B3: u_c= | C3: =0.1*G3 -> 1.9 | D3: ug/L | G3: 19 | H3: U = k*u_c = | J3: =C3*L1 -> 3.8 | K3: ug/L | AM3: -620.18 | AN3: =AM3+$C$2 -> -604.08 | AO3: =NORMDIST(AN3,$C$2,$C$3,FALSE) -> 0 | AP3: =NORMDIST(AN3,$C$2,$C$3,TRUE) -> 0 | AR3: =AM3 -> -620.18 | AS3: =NORMDIST(AR3,0,1,FALSE) -> 0
AM4: -619.18 | AN4: -603.08 | AO4: 0 | AP4: 0 | AR4: -619.18 | AS4: 0
AL5: -618.18 | AM5: -602.08 | AN5: 0 | AO5: 0 | AQ5: -618.18 | AR5: 0
AL6: -617.18 | AM6: -601.08 | AN6: 0 | AO6: 0 | AQ6: -617.18 | AR6: 0
P7: bar - M(X) | AL7: -616.18 | AM7: -600.08 | AN7: 0 | AO7: 0 | AQ7: -616.18 | AR7: 0
P8: =C2 -> 16.1 | Q8: 0 | AL8: -615.18 | AM8: -599.08 | AN8: 0 | AO8: 0 | AQ8: -615.18 | AR8: 0
J9: 215 | P9: =C2 -> 16.1 | Q9: =MAX(AO373:AO2172) -> 0.2099696213 | AL9: -614.18 | AM9: -598.08 | AN9: 0 | AO9: 0 | AQ9: -614.18 | AR9: 0
K10: T_up= | L10: 20 | M10: 0 | AL10: -613.18 | AM10: -597.08 | AN10: 0 | AO10: 0 | AQ10: -613.18 | AR10: 0
L11: =L10 -> 20 | M11: 1 | AL11: -612.18 | AM11: -596.08 | AN11: 0 | AO11: 0 | AQ11: -612.18 | AR11: 0
A12: =#REF! ->  | B12: 0 | G12: 20 | H12: 1 | AL12: -611.18 | AM12: -595.08 | AN12: 0 | AO12: 0 | AQ12: -611.18 | AR12: 0
A13: =#REF! ->  | B13: 1 | H13: 20 | J13: a= | K13: =C2+C3*L1 -> 19.9 | L13: ppb | AL13: -610.18 | AM13: -594.08 | AN13: 0 | AO13: 0 | AQ13: -610.18 | AR13: 0
G14: =#REF! ->  | H14: 0 | L14: =K13-K15 -> 7.6 | M14: ppb | AL14: -609.18 | AM14: -593.08 | AN14: 0 | AO14: 0 | AQ14: -609.18 | AR14: 0
G15: =#REF! ->  | H15: 1 | J15: (-a)= | K15: =C2-L1*C3 -> 12.3 | L15: ppb | AL15: -608.18 | AM15: -592.08 | AN15: 0 | AO15: 0 | AQ15: -608.18 | AR15: 0
I16: P(-a<X<a) = | K16: =2*K18-1 -> 0.9544997361 | L16: 5 | M16: 336 | AA16: Right | AB16: =K13 -> 19.9 | AC16: 0 | AL16: -607.18 | AM16: -591.08 | AN16: 0 | AO16: 0 | AQ16: -607.18 | AR16: 0
J17: P %= | K17: =K16 -> 0.9544997361 | AB17: =K13 -> 19.9 | AC17: 1 | AL17: -606.18 | AM17: -590.08 | AN17: 0 | AO17: 0 | AQ17: -606.18 | AR17: 0
J18: P(X<a) = | K18: =NORMDIST(K13,C2,C3,TRUE) -> 0.9772498681 | AL18: -605.18 | AM18: -589.08 | AN18: 0 | AO18: 0 | AQ18: -605.18 | AR18: 0
J19: P(X>a) = | K19: =1-K18 -> 0.02275013195 | AA19: Left | AB19: =K15 -> 12.3 | AC19: 0 | AL19: -604.18 | AM19: -588.08 | AN19: 0 | AO19: 0 | AQ19: -604.18 | AR19: 0
I20: P(X>T_up) = | K20: =1-_xlfn.NORM.DIST(L10,C2,C3,TRUE) -> 0.02005416122 | AB20: =K15 -> 12.3 | AC20: 1 | AL20: -603.18 | AM20: -587.08 | AN20: 0 | AO20: 0 | AQ20: -603.18 | AR20: 0
AM21: -602.18 | AN21: -586.08 | AO21: 0 | AP21: 0 | AR21: -602.18 | AS21: 0
C22: NORMDIST(x,mean,standard_dev,FALSE) | AM22: -601.18 | AN22: -585.08 | AO22: 0 | AP22: 0 | AR22: -601.18 | AS22: 0
C23: NORMINV(probability,mean,standard_dev) | AM23: -600.18 | AN23: -584.08 | AO23: 0 | AP23: 0 | AR23: -600.18 | AS23: 0
AM24: -599.18 | AN24: -583.08 | AO24: 0 | AP24: 0 | AR24: -599.18 | AS24: 0
AM25: -598.18 | AN25: -582.08 | AO25: 0 | AP25: 0 | AR25: -598.18 | AS25: 0
AM26: -597.18 | AN26: -581.08 | AO26: 0 | AP26: 0 | AR26: -597.18 | AS26: 0
AM27: -596.18 | AN27: -580.08 | AO27: 0 | AP27: 0 | AR27: -596.18 | AS27: 0
AM28: -595.18 | AN28: -579.08 | AO28: 0 | AP28: 0 | AR28: -595.18 | AS28: 0
AM29: -594.18 | AN29: -578.08 | AO29: 0 | AP29: 0 | AR29: -594.18 | AS29: 0
AM30: -593.18 | AN30: -577.08 | AO30: 0 | AP30: 0 | AR30: -593.18 | AS30: 0
AM31: -592.18 | AN31: -576.08 | AO31: 0 | AP31: 0 | AR31: -592.18 | AS31: 0
AM32: -591.18 | AN32: -575.08 | AO32: 0 | AP32: 0 | AR32: -591.18 | AS32: 0
AM33: -590.18 | AN33: -574.08 | AO33: 0 | AP33: 0 | AR33: -590.18 | AS33: 0
AM34: -589.18 | AN34: -573.08 | AO34: 0 | AP34: 0 | AR34: -589.18 | AS34: 0
AM35: -588.18 | AN35: -572.08 | AO35: 0 | AP35: 0 | AR35: -588.18 | AS35: 0
AM36: -587.18 | AN36: -571.08 | AO36: 0 | AP36: 0 | AR36: -587.18 | AS36: 0
AM37: -586.18 | AN37: -570.08 | AO37: 0 | AP37: 0 | AR37: -586.18 | AS37: 0
AM38: -585.18 | AN38: -569.08 | AO38: 0 | AP38: 0 | AR38: -585.18 | AS38: 0
AM39: -584.18 | AN39: -568.08 | AO39: 0 | AP39: 0 | AR39: -584.18 | AS39: 0
AM40: -583.18 | AN40: -567.08 | AO40: 0 | AP40: 0 | AR40: -583.18 | AS40: 0
AM41: -582.18 | AN41: -566.08 | AO41: 0 | AP41: 0 | AR41: -582.18 | AS41: 0
AM42: -581.18 | AN42: -565.08 | AO42: 0 | AP42: 0 | AR42: -581.18 | AS42: 0
AM43: -580.18 | AN43: -564.08 | AO43: 0 | AP43: 0 | AR43: -580.18 | AS43: 0
AM44: -579.18 | AN44: -563.08 | AO44: 0 | AP44: 0 | AR44: -579.18 | AS44: 0
AM45: -578.18 | AN45: -562.08 | AO45: 0 | AP45: 0 | AR45: -578.18 | AS45: 0
AM46: -577.18 | AN46: -561.08 | AO46: 0 | AP46: 0 | AR46: -577.18 | AS46: 0
AM47: -576.18 | AN47: -560.08 | AO47: 0 | AP47: 0 | AR47: -576.18 | AS47: 0
AM48: -575.18 | AN48: -559.08 | AO48: 0 | AP48: 0 | AR48: -575.18 | AS48: 0
AM49: -574.18 | AN49: -558.08 | AO49: 0 | AP49: 0 | AR49: -574.18 | AS49: 0
AM50: -573.18 | AN50: -557.08 | AO50: 0 | AP50: 0 | AR50: -573.18 | AS50: 0
AM51: -572.18 | AN51: -556.08 | AO51: 0 | AP51: 0 | AR51: -572.18 | AS51: 0
AM52: -571.18 | AN52: -555.08 | AO52: 0 | AP52: 0 | AR52: -571.18 | AS52: 0
AM53: -570.18 | AN53: -554.08 | AO53: 0 | AP53: 0 | AR53: -570.18 | AS53: 0
AM54: -569.18 | AN54: -553.08 | AO54: 0 | AP54: 0 | AR54: -569.18 | AS54: 0
AM55: -568.18 | AN55: -552.08 | AO55: 0 | AP55: 0 | AR55: -568.18 | AS55: 0
AM56: -567.18 | AN56: -551.08 | AO56: 0 | AP56: 0 | AR56: -567.18 | AS56: 0
AM57: -566.18 | AN57: -550.08 | AO57: 0 | AP57: 0 | AR57: -566.18 | AS57: 0
AM58: -565.18 | AN58: -549.08 | AO58: 0 | AP58: 0 | AR58: -565.18 | AS58: 0
AM59: -564.18 | AN59: -548.08 | AO59: 0 | AP59: 0 | AR59: -564.18 | AS59: 0
AM60: -563.18 | AN60: -547.08 | AO60: 0 | AP60: 0 | AR60: -563.18 | AS60: 0
AM61: -562.18 | AN61: -546.08 | AO61: 0 | AP61: 0 | AR61: -562.18 | AS61: 0
AM62: -561.18 | AN62: -545.08 | AO62: 0 | AP62: 0 | AR62: -561.18 | AS62: 0
AM63: -560.18 | AN63: -544.08 | AO63: 0 | AP63: 0 | AR63: -560.18 | AS63: 0
AM64: -559.18 | AN64: -543.08 | AO64: 0 | AP64: 0 | AR64: -559.18 | AS64: 0
AM65: -558.18 | AN65: -542.08 | AO65: 0 | AP65: 0 | AR65: -558.18 | AS65: 0
AM66: -557.18 | AN66: -541.08 | AO66: 0 | AP66: 0 | AR66: -557.18 | AS66: 0
AM67: -556.18 | AN67: =AM67+$C$2 -> -540.08 | AO67: =NORMDIST(AN67,$C$2,$C$3,FALSE) -> 0 | AP67: =NORMDIST(AN67,$C$2,$C$3,TRUE) -> 0 | AR67: =AM67 -> -556.18 | AS67: =NORMDIST(AR67,0,1,FALSE) -> 0
AM68: -555.18 | AN68: -539.08 | AO68: 0 | AP68: 0 | AR68: -555.18 | AS68: 0
AM69: -554.18 | AN69: -538.08 | AO69: 0 | AP69: 0 | AR69: -554.18 | AS69: 0
AM70: -553.18 | AN70: -537.08 | AO70: 0 | AP70: 0 | AR70: -553.18 | AS70: 0
AM71: -552.18 | AN71: -536.08 | AO71: 0 | AP71: 0 | AR71: -552.18 | AS71: 0
AM72: -551.18 | AN72: -535.08 | AO72: 0 | AP72: 0 | AR72: -551.18 | AS72: 0
AM73: -550.18 | AN73: -534.08 | AO73: 0 | AP73: 0 | AR73: -550.18 | AS73: 0
AM74: -549.18 | AN74: -533.08 | AO74: 0 | AP74: 0 | AR74: -549.18 | AS74: 0
AM75: -548.18 | AN75: -532.08 | AO75: 0 | AP75: 0 | AR75: -548.18 | AS75: 0
AM76: -547.18 | AN76: -531.08 | AO76: 0 | AP76: 0 | AR76: -547.18 | AS76: 0
AM77: -546.18 | AN77: -530.08 | AO77: 0 | AP77: 0 | AR77: -546.18 | AS77: 0
AM78: -545.18 | AN78: -529.08 | AO78: 0 | AP78: 0 | AR78: -545.18 | AS78: 0
AM79: -544.18 | AN79: -528.08 | AO79: 0 | AP79: 0 | AR79: -544.18 | AS79: 0
AM80: -543.18 | AN80: -527.08 | AO80: 0 | AP80: 0 | AR80: -543.18 | AS80: 0
AM81: -542.18 | AN81: -526.08 | AO81: 0 | AP81: 0 | AR81: -542.18 | AS81: 0
AM82: -541.18 | AN82: -525.08 | AO82: 0 | AP82: 0 | AR82: -541.18 | AS82: 0
AM83: -540.18 | AN83: -524.08 | AO83: 0 | AP83: 0 | AR83: -540.18 | AS83: 0
AM84: -539.18 | AN84: -523.08 | AO84: 0 | AP84: 0 | AR84: -539.18 | AS84: 0
AM85: -538.18 | AN85: -522.08 | AO85: 0 | AP85: 0 | AR85: -538.18 | AS85: 0
AM86: -537.18 | AN86: -521.08 | AO86: 0 | AP86: 0 | AR86: -537.18 | AS86: 0
AM87: -536.18 | AN87: -520.08 | AO87: 0 | AP87: 0 | AR87: -536.18 | AS87: 0
AM88: -535.18 | AN88: -519.08 | AO88: 0 | AP88: 0 | AR88: -535.18 | AS88: 0
AM89: -534.18 | AN89: -518.08 | AO89: 0 | AP89: 0 | AR89: -534.18 | AS89: 0
AM90: -533.18 | AN90: -517.08 | AO90: 0 | AP90: 0 | AR90: -533.18 | AS90: 0
AM91: -532.18 | AN91: -516.08 | AO91: 0 | AP91: 0 | AR91: -532.18 | AS91: 0
AM92: -531.18 | AN92: -515.08 | AO92: 0 | AP92: 0 | AR92: -531.18 | AS92: 0
AM93: -530.18 | AN93: -514.08 | AO93: 0 | AP93: 0 | AR93: -530.18 | AS93: 0
AM94: -529.18 | AN94: -513.08 | AO94: 0 | AP94: 0 | AR94: -529.18 | AS94: 0
AM95: -528.18 | AN95: -512.08 | AO95: 0 | AP95: 0 | AR95: -528.18 | AS95: 0
AM96: -527.18 | AN96: -511.08 | AO96: 0 | AP96: 0 | AR96: -527.18 | AS96: 0
AM97: -526.18 | AN97: -510.08 | AO97: 0 | AP97: 0 | AR97: -526.18 | AS97: 0
AM98: -525.18 | AN98: -509.08 | AO98: 0 | AP98: 0 | AR98: -525.18 | AS98: 0
AM99: -524.18 | AN99: -508.08 | AO99: 0 | AP99: 0 | AR99: -524.18 | AS99: 0
AM100: -523.18 | AN100: -507.08 | AO100: 0 | AP100: 0 | AR100: -523.18 | AS100: 0
AM101: -522.18 | AN101: -506.08 | AO101: 0 | AP101: 0 | AR101: -522.18 | AS101: 0
AM102: -521.18 | AN102: -505.08 | AO102: 0 | AP102: 0 | AR102: -521.18 | AS102: 0
AM103: -520.18 | AN103: -504.08 | AO103: 0 | AP103: 0 | AR103: -520.18 | AS103: 0
AM104: -519.18 | AN104: -503.08 | AO104: 0 | AP104: 0 | AR104: -519.18 | AS104: 0
AM105: -518.18 | AN105: -502.08 | AO105: 0 | AP105: 0 | AR105: -518.18 | AS105: 0
AM106: -517.18 | AN106: -501.08 | AO106: 0 | AP106: 0 | AR106: -517.18 | AS106: 0
AM107: -516.18 | AN107: -500.08 | AO107: 0 | AP107: 0 | AR107: -516.18 | AS107: 0
AM108: -515.18 | AN108: -499.08 | AO108: 0 | AP108: 0 | AR108: -515.18 | AS108: 0
AM109: -514.18 | AN109: -498.08 | AO109: 0 | AP109: 0 | AR109: -514.18 | AS109: 0
AM110: -513.18 | AN110: -497.08 | AO110: 0 | AP110: 0 | AR110: -513.18 | AS110: 0
AM111: -512.18 | AN111: -496.08 | AO111: 0 | AP111: 0 | AR111: -512.18 | AS111: 0
AM112: -511.18 | AN112: -495.08 | AO112: 0 | AP112: 0 | AR112: -511.18 | AS112: 0
AM113: -510.18 | AN113: -494.08 | AO113: 0 | AP113: 0 | AR113: -510.18 | AS113: 0
AM114: -509.18 | AN114: -493.08 | AO114: 0 | AP114: 0 | AR114: -509.18 | AS114: 0
AM115: -508.18 | AN115: -492.08 | AO115: 0 | AP115: 0 | AR115: -508.18 | AS115: 0
AM116: -507.18 | AN116: -491.08 | AO116: 0 | AP116: 0 | AR116: -507.18 | AS116: 0
AM117: -506.18 | AN117: -490.08 | AO117: 0 | AP117: 0 | AR117: -506.18 | AS117: 0
AM118: -505.18 | AN118: -489.08 | AO118: 0 | AP118: 0 | AR118: -505.18 | AS118: 0
AM119: -504.18 | AN119: -488.08 | AO119: 0 | AP119: 0 | AR119: -504.18 | AS119: 0
AM120: -503.18 | AN120: -487.08 | AO120: 0 | AP120: 0 | AR120: -503.18 | AS120: 0
AM121: -502.18 | AN121: -486.08 | AO121: 0 | AP121: 0 | AR121: -502.18 | AS121: 0
AM122: -501.18 | AN122: -485.08 | AO122: 0 | AP122: 0 | AR122: -501.18 | AS122: 0
AM123: -500.18 | AN123: -484.08 | AO123: 0 | AP123: 0 | AR123: -500.18 | AS123: 0
AM124: -499.18 | AN124: -483.08 | AO124: 0 | AP124: 0 | AR124: -499.18 | AS124: 0
AM125: -498.18 | AN125: -482.08 | AO125: 0 | AP125: 0 | AR125: -498.18 | AS125: 0
AM126: -497.18 | AN126: -481.08 | AO126: 0 | AP126: 0 | AR126: -497.18 | AS126: 0
AM127: -496.18 | AN127: -480.08 | AO127: 0 | AP127: 0 | AR127: -496.18 | AS127: 0
AM128: -495.18 | AN128: -479.08 | AO128: 0 | AP128: 0 | AR128: -495.18 | AS128: 0
AM129: -494.18 | AN129: -478.08 | AO129: 0 | AP129: 0 | AR129: -494.18 | AS129: 0
AM130: -493.18 | AN130: -477.08 | AO130: 0 | AP130: 0 | AR130: -493.18 | AS130: 0
AM131: -492.18 | AN131: =AM131+$C$2 -> -476.08 | AO131: =NORMDIST(AN131,$C$2,$C$3,FALSE) -> 0 | AP131: =NORMDIST(AN131,$C$2,$C$3,TRUE) -> 0 | AR131: =AM131 -> -492.18 | AS131: =NORMDIST(AR131,0,1,FALSE) -> 0
AM132: -491.18 | AN132: -475.08 | AO132: 0 | AP132: 0 | AR132: -491.18 | AS132: 0
AM133: -490.18 | AN133: -474.08 | AO133: 0 | AP133: 0 | AR133: -490.18 | AS133: 0
AM134: -489.18 | AN134: -473.08 | AO134: 0 | AP134: 0 | AR134: -489.18 | AS134: 0
AM135: -488.18 | AN135: -472.08 | AO135: 0 | AP135: 0 | AR135: -488.18 | AS135: 0
AM136: -487.18 | AN136: -471.08 | AO136: 0 | AP136: 0 | AR136: -487.18 | AS136: 0
AM137: -486.18 | AN137: -470.08 | AO137: 0 | AP137: 0 | AR137: -486.18 | AS137: 0
AM138: -485.18 | AN138: -469.08 | AO138: 0 | AP138: 0 | AR138: -485.18 | AS138: 0
AM139: -484.18 | AN139: -468.08 | AO139: 0 | AP139: 0 | AR139: -484.18 | AS139: 0
AM140: -483.18 | AN140: -467.08 | AO140: 0 | AP140: 0 | AR140: -483.18 | AS140: 0
AM141: -482.18 | AN141: -466.08 | AO141: 0 | AP141: 0 | AR141: -482.18 | AS141: 0
AM142: -481.18 | AN142: -465.08 | AO142: 0 | AP142: 0 | AR142: -481.18 | AS142: 0
AM143: -480.18 | AN143: -464.08 | AO143: 0 | AP143: 0 | AR143: -480.18 | AS143: 0
AM144: -479.18 | AN144: -463.08 | AO144: 0 | AP144: 0 | AR144: -479.18 | AS144: 0
AM145: -478.18 | AN145: -462.08 | AO145: 0 | AP145: 0 | AR145: -478.18 | AS145: 0
AM146: -477.18 | AN146: -461.08 | AO146: 0 | AP146: 0 | AR146: -477.18 | AS146: 0
AM147: -476.18 | AN147: -460.08 | AO147: 0 | AP147: 0 | AR147: -476.18 | AS147: 0
AM148: -475.18 | AN148: -459.08 | AO148: 0 | AP148: 0 | AR148: -475.18 | AS148: 0
AM149: -474.18 | AN149: -458.08 | AO149: 0 | AP149: 0 | AR149: -474.18 | AS149: 0
AM150: -473.18 | AN150: -457.08 | AO150: 0 | AP150: 0 | AR150: -473.18 | AS150: 0
AM151: -472.18 | AN151: -456.08 | AO151: 0 | AP151: 0 | AR151: -472.18 | AS151: 0
AM152: -471.18 | AN152: -455.08 | AO152: 0 | AP152: 0 | AR152: -471.18 | AS152: 0
AM153: -470.18 | AN153: -454.08 | AO153: 0 | AP153: 0 | AR153: -470.18 | AS153: 0
AM154: -469.18 | AN154: -453.08 | AO154: 0 | AP154: 0 | AR154: -469.18 | AS154: 0
AM155: -468.18 | AN155: -452.08 | AO155: 0 | AP155: 0 | AR155: -468.18 | AS155: 0
AM156: -467.18 | AN156: -451.08 | AO156: 0 | AP156: 0 | AR156: -467.18 | AS156: 0
AM157: -466.18 | AN157: -450.08 | AO157: 0 | AP157: 0 | AR157: -466.18 | AS157: 0
AM158: -465.18 | AN158: -449.08 | AO158: 0 | AP158: 0 | AR158: -465.18 | AS158: 0
AM159: -464.18 | AN159: -448.08 | AO159: 0 | AP159: 0 | AR159: -464.18 | AS159: 0
AM160: -463.18 | AN160: -447.08 | AO160: 0 | AP160: 0 | AR160: -463.18 | AS160: 0
AM161: -462.18 | AN161: -446.08 | AO161: 0 | AP161: 0 | AR161: -462.18 | AS161: 0
AM162: -461.18 | AN162: -445.08 | AO162: 0 | AP162: 0 | AR162: -461.18 | AS162: 0
AM163: -460.18 | AN163: -444.08 | AO163: 0 | AP163: 0 | AR163: -460.18 | AS163: 0
AM164: -459.18 | AN164: -443.08 | AO164: 0 | AP164: 0 | AR164: -459.18 | AS164: 0
AM165: -458.18 | AN165: -442.08 | AO165: 0 | AP165: 0 | AR165: -458.18 | AS165: 0
AM166: -457.18 | AN166: -441.08 | AO166: 0 | AP166: 0 | AR166: -457.18 | AS166: 0
AM167: -456.18 | AN167: -440.08 | AO167: 0 | AP167: 0 | AR167: -456.18 | AS167: 0
AM168: -455.18 | AN168: -439.08 | AO168: 0 | AP168: 0 | AR168: -455.18 | AS168: 0
AM169: -454.18 | AN169: -438.08 | AO169: 0 | AP169: 0 | AR169: -454.18 | AS169: 0
AM170: -453.18 | AN170: -437.08 | AO170: 0 | AP170: 0 | AR170: -453.18 | AS170: 0
AM171: -452.18 | AN171: -436.08 | AO171: 0 | AP171: 0 | AR171: -452.18 | AS171: 0
AM172: -451.18 | AN172: -435.08 | AO172: 0 | AP172: 0 | AR172: -451.18 | AS172: 0
AM173: -450.18 | AN173: -434.08 | AO173: 0 | AP173: 0 | AR173: -450.18 | AS173: 0
AM174: -449.18 | AN174: -433.08 | AO174: 0 | AP174: 0 | AR174: -449.18 | AS174: 0
AM175: -448.18 | AN175: -432.08 | AO175: 0 | AP175: 0 | AR175: -448.18 | AS175: 0
AM176: -447.18 | AN176: -431.08 | AO176: 0 | AP176: 0 | AR176: -447.18 | AS176: 0
AM177: -446.18 | AN177: -430.08 | AO177: 0 | AP177: 0 | AR177: -446.18 | AS177: 0
AM178: -445.18 | AN178: -429.08 | AO178: 0 | AP178: 0 | AR178: -445.18 | AS178: 0
AM179: -444.18 | AN179: -428.08 | AO179: 0 | AP179: 0 | AR179: -444.18 | AS179: 0
AM180: -443.18 | AN180: -427.08 | AO180: 0 | AP180: 0 | AR180: -443.18 | AS180: 0
AM181: -442.18 | AN181: -426.08 | AO181: 0 | AP181: 0 | AR181: -442.18 | AS181: 0
AM182: -441.18 | AN182: -425.08 | AO182: 0 | AP182: 0 | AR182: -441.18 | AS182: 0
AM183: -440.18 | AN183: -424.08 | AO183: 0 | AP183: 0 | AR183: -440.18 | AS183: 0
AM184: -439.18 | AN184: -423.08 | AO184: 0 | AP184: 0 | AR184: -439.18 | AS184: 0
AM185: -438.18 | AN185: -422.08 | AO185: 0 | AP185: 0 | AR185: -438.18 | AS185: 0
AM186: -437.18 | AN186: -421.08 | AO186: 0 | AP186: 0 | AR186: -437.18 | AS186: 0
AM187: -436.18 | AN187: -420.08 | AO187: 0 | AP187: 0 | AR187: -436.18 | AS187: 0
AM188: -435.18 | AN188: -419.08 | AO188: 0 | AP188: 0 | AR188: -435.18 | AS188: 0
AM189: -434.18 | AN189: -418.08 | AO189: 0 | AP189: 0 | AR189: -434.18 | AS189: 0
AM190: -433.18 | AN190: -417.08 | AO190: 0 | AP190: 0 | AR190: -433.18 | AS190: 0
AM191: -432.18 | AN191: -416.08 | AO191: 0 | AP191: 0 | AR191: -432.18 | AS191: 0
AM192: -431.18 | AN192: -415.08 | AO192: 0 | AP192: 0 | AR192: -431.18 | AS192: 0
AM193: -430.18 | AN193: -414.08 | AO193: 0 | AP193: 0 | AR193: -430.18 | AS193: 0
AM194: -429.18 | AN194: -413.08 | AO194: 0 | AP194: 0 | AR194: -429.18 | AS194: 0
AM195: -428.18 | AN195: =AM195+$C$2 -> -412.08 | AO195: =NORMDIST(AN195,$C$2,$C$3,FALSE) -> 0 | AP195: =NORMDIST(AN195,$C$2,$C$3,TRUE) -> 0 | AR195: =AM195 -> -428.18 | AS195: =NORMDIST(AR195,0,1,FALSE) -> 0
AM196: -427.18 | AN196: -411.08 | AO196: 0 | AP196: 0 | AR196: -427.18 | AS196: 0
AM197: -426.18 | AN197: -410.08 | AO197: 0 | AP197: 0 | AR197: -426.18 | AS197: 0
AM198: -425.18 | AN198: -409.08 | AO198: 0 | AP198: 0 | AR198: -425.18 | AS198: 0
AM199: -424.18 | AN199: -408.08 | AO199: 0 | AP199: 0 | AR199: -424.18 | AS199: 0
AM200: -423.18 | AN200: -407.08 | AO200: 0 | AP200: 0 | AR200: -423.18 | AS200: 0
... 925 more rows

Sheet Horwitz
A1: HORWITZ - trompet
G2: Horwitz - 1982
Y7: C m/m | Z7: +RSD | AA7: -RDS | AB7: SD
Y8: 1 | Z8: =2^(1-(0.5*LOG(Y8))) -> 2 | AA8: =-Z8 -> -2 | AB8: =0.02*(Y8^0.8495) -> 0.02 | AC8: =AB8/Y8 -> 0.02
Y9: 0.1 | Z9: =2^(1-(0.5*LOG(Y9))) -> 2.828427125 | AA9: =-Z9 -> -2.828427125 | AB9: =0.02*(Y9^0.8495) -> 0.00282832945 | AC9: 0.0282832945
G10: 1000 ppm | Y10: 0.001 | Z10: 5.656854249 | AA10: -5.656854249 | AB10: 5.656268222e-05 | AC10: 0.05656268222
G11: 100 ppm | Y11: 0.0001 | Z11: 8 | AA11: -8 | AB11: 7.998894995e-06 | AC11: 0.07998894995
G12: 10 ppm | Y12: 1e-05 | Z12: 11.3137085 | AA12: -11.3137085 | AB12: 1.131175514e-06 | AC12: 0.1131175514
G13: ppm | Y13: 1e-06 | Z13: 16 | AA13: -16 | AB13: 1.59966851e-07 | AC13: 0.159966851
G14: 100 ppb | Y14: 1e-07 | Z14: =2^(1-(0.5*LOG(Y14))) -> 22.627417 | AA14: -22.627417 | AB14: 2.262194779e-08 | AC14: 0.2262194779
G15: 10ppb | Y15: 1e-08 | Z15: =2^(1-(0.5*LOG(Y15))) -> 32 | AA15: -32 | AB15: 3.199116057e-09 | AC15: 0.3199116057
G16: ppb | Y16: 1e-09 | Z16: 45.254834 | AA16: -45.254834 | AB16: 4.52407708e-10 | AC16: 0.452407708
G17: 0.1 ppb | Y17: 1e-10 | Z17: 64 | AA17: -64 | AB17: 6.397790219e-11 | AC17: 0.6397790219
Y18: 1e-12 | Z18: =2^(1-(0.5*LOG(Y18))) -> 128 | AA18: =-Z18 -> -128 | AB18: 1.279469671e-12 | AC18: =AB18/Y18 -> 1.279469671
C22: 9 | F22: Put here the ratio
B23: C(m/M)= | C23: =POWER(10,-C22) -> 1e-09 | F23: C(m/M)= | G23: 10
B24: (+-RSD)= | C24: =2^(1-(0.5*LOG(C23))) -> 45.254834 | D24: % | F24: (RSD)= | G24: =2^(1-(0.5*LOG(G23))) -> 1.414213562
C25: =-C24 -> -45.254834
B27: SD_H= | C27: =0.02*C23^0.8495 -> 4.52407708e-10 | E27: Michael Thompson and Roger Wood - Using uncertainty to predict and specify the performance of analytical method
B28: RSD_H= | C28: =C27/C23 -> 0.452407708 | E28: LOD | F28: RSD% | G28: C | I28: Horwiz RSD% | J28: Max u_
E29: =E33*H29 -> 1.3e-07 | F29: =F33*100 -> 12 | G29: =G33*H29 -> 9.7e-07 | H29: =10^-H30 -> 1e-07 | I29: =2^(1-(0.5*LOG(G29))) -> 16.07352148 | J29: =I29*G29/100 -> 1.559131584e-07
H30: 7
A31: relative standard uncertainty RSU | E31: 13 | F31: 12 | G31: 97 | I31: 404
E32: P | F32: Q | G32: C | I32: RSD
E33: =E31*0.1 -> 1.3 | F33: =F31*0.01 -> 0.12 | G33: =G31*0.1 -> 9.7 | I33: =I31*0.1 -> 40.4
D34: u | E34: =SQRT((E33)+(F33*(G33^2))) -> 3.54835173
F35: C | G35: u_r | H35: u_fit | I35: u_r - u_fit | J35: FFP неопределеност
A36: u | B36: =SQRT((($E$29^2)/4)+($F$33*((D36*$H$29)^2))) -> 6.509224224e-08 | D36: 0.1 | F36: =D36*$H$29 -> 1e-08 | G36: =B36 -> 6.509224224e-08 | H36: =F36*$I$33/100 -> 4.04e-09 | I36: =G36-H36 -> 6.105224224e-08 | J36: неопределеност на метода
B37: =SQRT((($E$29^2)/4)+($F$33*((D37*$H$29)^2))) -> 9.5e-08 | D37: 2 | F37: 2e-07 | G37: 9.5e-08 | H37: =F37*$I$33/100 -> 8.08e-08 | I37: =G37-H37 -> 1.42e-08
B38: 1.499233137e-07 | D38: 3.9 | F38: 3.9e-07 | G38: 1.499233137e-07 | H38: 1.5756e-07 | I38: -7.636686269e-09
B39: 2.111705472e-07 | D39: 5.8 | F39: 5.8e-07 | G39: 2.111705472e-07 | H39: 2.3432e-07 | I39: -2.314945281e-08
B40: 2.745414359e-07 | D40: 7.7 | F40: 7.7e-07 | G40: 2.745414359e-07 | H40: 3.1108e-07 | I40: -3.653856415e-08
B41: 3.38846573e-07 | D41: 9.6 | F41: 9.6e-07 | G41: 3.38846573e-07 | H41: 3.8784e-07 | I41: -4.899342705e-08
B42: 4.036396908e-07 | D42: 11.5 | F42: 1.15e-06 | G42: 4.036396908e-07 | H42: 4.646e-07 | I42: -6.096030919e-08
B43: 4.687184656e-07 | D43: 13.4 | F43: 1.34e-06 | G43: 4.687184656e-07 | H43: 5.4136e-07 | I43: -7.264153439e-08
B44: 5.33978464e-07 | D44: 15.3 | F44: 1.53e-06 | G44: 5.33978464e-07 | H44: 6.1812e-07 | I44: -8.414153601e-08
B45: 5.993604925e-07 | D45: 17.2 | F45: 1.72e-06 | G45: 5.993604925e-07 | H45: 6.9488e-07 | I45: -9.551950747e-08
B46: 6.648285493e-07 | D46: 19.1 | F46: 1.91e-06 | G46: 6.648285493e-07 | H46: 7.7164e-07 | I46: -1.068114507e-07
B47: 7.303595005e-07 | D47: 21 | F47: 2.1e-06 | G47: 7.303595005e-07 | H47: 8.484e-07 | I47: -1.180404995e-07
B48: 7.959378116e-07 | D48: 22.9 | F48: 2.29e-06 | G48: 7.959378116e-07 | H48: 9.2516e-07 | I48: -1.292221884e-07
B49: 8.615526682e-07 | D49: 24.8 | F49: 2.48e-06 | G49: 8.615526682e-07 | H49: 1.00192e-06 | I49: -1.403673318e-07
B50: 9.271963115e-07 | D50: 26.7 | F50: 2.67e-06 | G50: 9.271963115e-07 | H50: 1.07868e-06 | I50: =G50-H50 -> -1.514836885e-07
V681: Разработка за учебни цели ВК

Sheet 8_LOD'2'ST'distr
A1: Limits of Detection and Limits of Quantitation
AE2: x0 | AF2: x1 | AG2: F(x) | AH2: P(x)
A4: 100 | B4: BL= | C4: 0 | E4: M2= | F4: 6 | W4: X | X4: X1 | Y4: P(X1) | Z4: X2 | AA4: P(X2) | AE4: -4 | AF4: =AE4+$C$4 -> -4 | AG4: =NORMDIST(AF4,$C$4,$C$5,1) -> 3.167124183e-05 | AH4: =NORMDIST(AF4,$C$4,$C$5,FALSE) -> 0.0001338302258
B5: S0= | C5: =A6*0.1 -> 1 | D5: L | E5: S2= | F5: =G5*0.05 -> 1 | G5: 20 | W5: -4 | X5: =W5+$C$4 -> -4 | Y5: =NORMDIST(X5,$C$4,$C$5,0) -> 0.0001338302258 | Z5: =W5+$F$4 -> 2 | AA5: =NORMDIST(Z5,$F$4,$F$5,0) -> 0.0001338302258 | AE5: -3.8 | AF5: -3.8 | AG5: 7.234804393e-05 | AH5: 0.0002919469258
A6: 10 | B6: N= | C6: 5 | D6: =C4+3*C5 -> 3 | F6: 2 | G6: 30 | H6: 0.1 | W6: -3.9 | X6: =W6+$C$4 -> -3.9 | Y6: =NORMDIST(X6,$C$4,$C$5,0) -> 0.0001986554714 | Z6: =W6+$F$4 -> 2.1 | AA6: =NORMDIST(Z6,$F$4,$F$5,0) -> 0.0001986554714 | AE6: -3.6 | AF6: -3.6 | AG6: 0.0001591085902 | AH6: 0.0006119019301
F7: 13 | K7: a= | W7: -3.8 | X7: -3.8 | Y7: =NORMDIST(X7,$C$4,$C$5,0) -> 0.0002919469258 | Z7: 2.2 | AA7: 0.0002919469258 | AE7: -3.4 | AF7: -3.4 | AG7: 0.0003369292657 | AH7: 0.001232219168
W8: -3.7 | X8: -3.7 | Y8: =NORMDIST(X8,$C$4,$C$5,0) -> 0.0004247802706 | Z8: 2.3 | AA8: 0.0004247802706 | AE8: -3.2 | AF8: -3.2 | AG8: 0.0006871379379 | AH8: 0.002384088201
K9: BL-up= | L9: =C4+(0.01*M9) -> 2 | M9: 200 | W9: -3.6 | X9: -3.6 | Y9: =NORMDIST(X9,$C$4,$C$5,0) -> 0.0006119019301 | Z9: 2.4 | AA9: 0.0006119019301 | AE9: -3 | AF9: -3 | AG9: 0.001349898032 | AH9: 0.004431848412
W10: -3.5 | X10: -3.5 | Y10: 0.000872682695 | Z10: 2.5 | AA10: 0.000872682695 | AE10: -2.8 | AF10: -2.8 | AG10: 0.00255513033 | AH10: 0.007915451583
K11: P_bl_(X<a) = | M11: =NORMDIST(L9,C4,C5,TRUE) -> 0.9772498681 | R11: BL_up | W11: -3.4 | X11: -3.4 | Y11: 0.001232219168 | Z11: 2.6 | AA11: 0.001232219168 | AE11: -2.6 | AF11: -2.6 | AG11: 0.004661188024 | AH11: 0.01358296923
K12: P_bl_(X>a) = | M12: =1-M11 -> 0.02275013195 | N12: За ICP-OES | R12: =L9 -> 2 | S12: 0 | W12: -3.3 | X12: -3.3 | Y12: 0.001722568939 | Z12: 2.7 | AA12: 0.001722568939 | AE12: -2.4 | AF12: -2.4 | AG12: 0.008197535925 | AH12: 0.02239453029
R13: =L9 -> 2 | S13: 0.5 | W13: -3.2 | X13: -3.2 | Y13: 0.002384088201 | Z13: 2.8 | AA13: 0.002384088201 | AE13: -2.2 | AF13: -2.2 | AG13: 0.01390344751 | AH13: 0.03547459285
W14: -3.1 | X14: -3.1 | Y14: 0.003266819056 | Z14: 2.9 | AA14: 0.003266819056 | AE14: -2 | AF14: -2 | AG14: 0.02275013195 | AH14: 0.05399096651
W15: -3 | X15: -3 | Y15: 0.004431848412 | Z15: 3 | AA15: 0.004431848412 | AE15: -1.8 | AF15: -1.8 | AG15: 0.03593031911 | AH15: 0.0789501583
K16: Sampl_L | L16: =F4-(0.01*M16) -> 4.35 | M16: 165 | W16: -2.9 | X16: -2.9 | Y16: 0.00595253242 | Z16: 3.1 | AA16: 0.00595253242 | AE16: -1.6 | AF16: -1.6 | AG16: 0.0547992917 | AH16: 0.1109208347
K17: sig_sampl= | L17: =(L16-F4)/F5 -> -1.65 | R17: Sapl_L | W17: -2.8 | X17: -2.8 | Y17: 0.007915451583 | Z17: 3.2 | AA17: 0.007915451583 | AE17: -1.4 | AF17: -1.4 | AG17: 0.08075665923 | AH17: 0.1497274656
K18: P_bl_(X<a) = | M18: =NORMDIST(L16,F4,F5,TRUE) -> 0.04947146803 | R18: =L16 -> 4.35 | S18: 0 | W18: -2.7 | X18: -2.7 | Y18: 0.01042093481 | Z18: 3.3 | AA18: 0.01042093481 | AE18: -1.2 | AF18: -1.2 | AG18: 0.1150696702 | AH18: 0.194186055
K19: P_bl_(X>a) = | M19: =1-M18 -> 0.950528532 | R19: =L16 -> 4.35 | S19: 0.5 | W19: -2.6 | X19: -2.6 | Y19: 0.01358296923 | Z19: 3.4 | AA19: 0.01358296923 | AE19: -1 | AF19: -1 | AG19: 0.1586552539 | AH19: 0.2419707245
W20: -2.5 | X20: -2.5 | Y20: 0.01752830049 | Z20: 3.5 | AA20: 0.01752830049 | AE20: -0.8 | AF20: -0.8 | AG20: 0.2118553986 | AH20: 0.2896915528
W21: -2.4 | X21: -2.4 | Y21: 0.02239453029 | Z21: 3.6 | AA21: 0.02239453029 | AE21: -0.6 | AF21: -0.6 | AG21: 0.2742531178 | AH21: 0.3332246029
Q22: M(X) на BL | U22: M(X) на проба | W22: -2.3 | X22: -2.3 | Y22: 0.02832703774 | Z22: 3.7 | AA22: 0.02832703774 | AE22: -0.4 | AF22: -0.4 | AG22: 0.3445782584 | AH22: 0.3682701403
O23: Граница -бар | Q23: =$C$4 -> 0 | R23: 0 | S23: 6 | T23: 0 | U23: =$F$4 -> 6 | V23: 0 | W23: -2.2 | X23: -2.2 | Y23: 0.03547459285 | Z23: 3.8 | AA23: 0.03547459285 | AE23: -0.2 | AF23: -0.2 | AG23: 0.4207402906 | AH23: 0.391042694
O24: 1 | Q24: =$C$4 -> 0 | R24: =MAX(Y5:Y145) -> 0.3989422804 | S24: =$S$23 -> 6 | T24: 0.1 | U24: =$F$4 -> 6 | V24: =MAX(AA5:AA145) -> 0.3989422804 | W24: -2.1 | X24: -2.1 | Y24: 0.04398359598 | Z24: 3.9 | AA24: 0.04398359598 | AE24: 0 | AF24: 0 | AG24: 0.5 | AH24: 0.3989422804
O25: 2 | S25: =$S$23 -> 6 | T25: 0.2 | W25: -2 | X25: -2 | Y25: 0.05399096651 | Z25: 4 | AA25: 0.05399096651 | AE25: 0.2 | AF25: 0.2 | AG25: 0.5792597094 | AH25: 0.391042694
O26: 3 | S26: =$S$23 -> 6 | T26: 0.3 | W26: -1.9 | X26: -1.9 | Y26: 0.06561581477 | Z26: 4.1 | AA26: 0.06561581477 | AE26: 0.4 | AF26: 0.4 | AG26: 0.6554217416 | AH26: 0.3682701403
O27: 4 | S27: =$S$23 -> 6 | T27: 0.4 | W27: -1.8 | X27: -1.8 | Y27: 0.0789501583 | Z27: 4.2 | AA27: 0.0789501583 | AE27: 0.6 | AF27: 0.6 | AG27: 0.7257468822 | AH27: 0.3332246029
O28: 5 | S28: =$S$23 -> 6 | T28: 0.5 | W28: -1.7 | X28: -1.7 | Y28: 0.09404907738 | Z28: 4.3 | AA28: 0.09404907738 | AE28: 0.8 | AF28: 0.8 | AG28: 0.7881446014 | AH28: 0.2896915528
O29: 6 | W29: -1.6 | X29: -1.6 | Y29: 0.1109208347 | Z29: 4.4 | AA29: 0.1109208347 | AE29: 1 | AF29: 1 | AG29: 0.8413447461 | AH29: 0.2419707245
O30: 7 | W30: -1.5 | X30: -1.5 | Y30: 0.1295175957 | Z30: 4.5 | AA30: 0.1295175957 | AE30: 1.2 | AF30: 1.2 | AG30: 0.8849303298 | AH30: 0.194186055
O31: 8 | W31: -1.4 | X31: -1.4 | Y31: 0.1497274656 | Z31: 4.6 | AA31: 0.1497274656 | AE31: 1.4 | AF31: 1.4 | AG31: 0.9192433408 | AH31: 0.1497274656
O32: 9 | W32: -1.3 | X32: -1.3 | Y32: 0.171368592 | Z32: 4.7 | AA32: 0.171368592 | AE32: 1.6 | AF32: 1.6 | AG32: 0.9452007083 | AH32: 0.1109208347
O33: 10 | W33: -1.2 | X33: -1.2 | Y33: 0.194186055 | Z33: 4.8 | AA33: 0.194186055 | AE33: 1.8 | AF33: 1.8 | AG33: 0.9640696809 | AH33: 0.0789501583
W34: -1.1 | X34: -1.1 | Y34: 0.217852177 | Z34: 4.9 | AA34: 0.217852177 | AE34: 2 | AF34: 2 | AG34: 0.9772498681 | AH34: 0.05399096651
W35: -1 | X35: -1 | Y35: 0.2419707245 | Z35: 5 | AA35: 0.2419707245 | AE35: 2.2 | AF35: 2.2 | AG35: 0.9860965525 | AH35: 0.03547459285
W36: -0.9 | X36: -0.9 | Y36: 0.2660852499 | Z36: 5.1 | AA36: 0.2660852499 | AE36: 2.4 | AF36: 2.4 | AG36: 0.9918024641 | AH36: 0.02239453029
W37: -0.8 | X37: -0.8 | Y37: 0.2896915528 | Z37: 5.2 | AA37: 0.2896915528 | AE37: 2.6 | AF37: 2.6 | AG37: 0.995338812 | AH37: 0.01358296923
W38: -0.7 | X38: -0.7 | Y38: 0.3122539334 | Z38: 5.3 | AA38: 0.3122539334 | AE38: 2.8 | AF38: 2.8 | AG38: 0.9974448697 | AH38: 0.007915451583
W39: -0.6 | X39: -0.6 | Y39: 0.3332246029 | Z39: 5.4 | AA39: 0.3332246029 | AE39: 3 | AF39: 3 | AG39: 0.998650102 | AH39: 0.004431848412
W40: -0.5 | X40: -0.5 | Y40: 0.3520653268 | Z40: 5.5 | AA40: 0.3520653268 | AE40: 3.2 | AF40: 3.2 | AG40: 0.9993128621 | AH40: 0.002384088201
W41: -0.4 | X41: -0.4 | Y41: 0.3682701403 | Z41: 5.6 | AA41: 0.3682701403 | AE41: 3.4 | AF41: 3.4 | AG41: 0.9996630707 | AH41: 0.001232219168
W42: -0.3 | X42: -0.3 | Y42: 0.3813878155 | Z42: 5.7 | AA42: 0.3813878155 | AE42: 3.6 | AF42: 3.6 | AG42: 0.9998408914 | AH42: 0.0006119019301
W43: -0.2 | X43: -0.2 | Y43: 0.391042694 | Z43: 5.8 | AA43: 0.391042694 | AE43: 3.8 | AF43: 3.8 | AG43: 0.999927652 | AH43: 0.0002919469258
W44: -0.1 | X44: -0.1 | Y44: 0.3969525475 | Z44: 5.9 | AA44: 0.3969525475 | AE44: 4 | AF44: 4 | AG44: 0.9999683288 | AH44: 0.0001338302258
W45: 0 | X45: 0 | Y45: 0.3989422804 | Z45: 6 | AA45: 0.3989422804 | AE45: -4 | AF45: =AE45+$F$4 -> 2 | AG45: 0.9772498681 | AH45: =NORMDIST(AF45,$F$4,$F$5,FALSE) -> 0.0001338302258
W46: 0.1 | X46: 0.1 | Y46: 0.3969525475 | Z46: 6.1 | AA46: 0.3969525475 | AE46: -3.8 | AF46: 2.2 | AG46: 0.9860965525 | AH46: 0.0002919469258
W47: 0.2 | X47: 0.2 | Y47: 0.391042694 | Z47: 6.2 | AA47: 0.391042694 | AE47: -3.6 | AF47: 2.4 | AG47: 0.9918024641 | AH47: 0.0006119019301
W48: 0.3 | X48: 0.3 | Y48: 0.3813878155 | Z48: 6.3 | AA48: 0.3813878155 | AE48: -3.4 | AF48: 2.6 | AG48: 0.995338812 | AH48: 0.001232219168
W49: 0.4 | X49: 0.4 | Y49: 0.3682701403 | Z49: 6.4 | AA49: 0.3682701403 | AE49: -3.2 | AF49: 2.8 | AG49: 0.9974448697 | AH49: 0.002384088201
W50: 0.5 | X50: 0.5 | Y50: 0.3520653268 | Z50: 6.5 | AA50: 0.3520653268 | AE50: -3 | AF50: 3 | AG50: 0.998650102 | AH50: 0.004431848412
W51: 0.6 | X51: 0.6 | Y51: 0.3332246029 | Z51: 6.6 | AA51: 0.3332246029 | AE51: -2.8 | AF51: 3.2 | AG51: 0.9993128621 | AH51: 0.007915451583
W52: 0.7 | X52: 0.7 | Y52: 0.3122539334 | Z52: 6.7 | AA52: 0.3122539334 | AE52: -2.6 | AF52: 3.4 | AG52: 0.9996630707 | AH52: 0.01358296923
W53: 0.8 | X53: 0.8 | Y53: 0.2896915528 | Z53: 6.8 | AA53: 0.2896915528 | AE53: -2.4 | AF53: 3.6 | AG53: 0.9998408914 | AH53: 0.02239453029
W54: 0.9 | X54: 0.9 | Y54: 0.2660852499 | Z54: 6.9 | AA54: 0.2660852499 | AE54: -2.2 | AF54: 3.8 | AG54: 0.999927652 | AH54: 0.03547459285
W55: 1 | X55: 1 | Y55: 0.2419707245 | Z55: 7 | AA55: 0.2419707245 | AE55: -2 | AF55: 4 | AG55: 0.9999683288 | AH55: 0.05399096651
W56: 1.1 | X56: 1.1 | Y56: 0.217852177 | Z56: 7.1 | AA56: 0.217852177 | AE56: -1.8 | AF56: 4.2 | AG56: 0.9999866543 | AH56: 0.0789501583
W57: 1.2 | X57: 1.2 | Y57: 0.194186055 | Z57: 7.2 | AA57: 0.194186055 | AE57: -1.6 | AF57: 4.4 | AG57: 0.9999945875 | AH57: 0.1109208347
W58: 1.3 | X58: 1.3 | Y58: 0.171368592 | Z58: 7.3 | AA58: 0.171368592 | AE58: -1.4 | AF58: 4.6 | AG58: 0.9999978875 | AH58: 0.1497274656
W59: 1.4 | X59: 1.4 | Y59: 0.1497274656 | Z59: 7.4 | AA59: 0.1497274656 | AE59: -1.2 | AF59: 4.8 | AG59: 0.9999992067 | AH59: 0.194186055
W60: 1.5 | X60: 1.5 | Y60: 0.1295175957 | Z60: 7.5 | AA60: 0.1295175957 | AE60: -1 | AF60: 5 | AG60: 0.9999997133 | AH60: 0.2419707245
W61: 1.6 | X61: 1.6 | Y61: 0.1109208347 | Z61: 7.6 | AA61: 0.1109208347 | AE61: -0.8 | AF61: 5.2 | AG61: 0.9999999004 | AH61: 0.2896915528
W62: 1.7 | X62: 1.7 | Y62: 0.09404907738 | Z62: 7.7 | AA62: 0.09404907738 | AE62: -0.6 | AF62: 5.4 | AG62: 0.9999999667 | AH62: 0.3332246029
W63: 1.8 | X63: 1.8 | Y63: 0.0789501583 | Z63: 7.8 | AA63: 0.0789501583 | AE63: -0.4 | AF63: 5.6 | AG63: 0.9999999893 | AH63: 0.3682701403
W64: 1.9 | X64: 1.9 | Y64: 0.06561581477 | Z64: 7.9 | AA64: 0.06561581477 | AE64: -0.2 | AF64: 5.8 | AG64: 0.9999999967 | AH64: 0.391042694
W65: 2 | X65: 2 | Y65: 0.05399096651 | Z65: 8 | AA65: 0.05399096651 | AE65: 0 | AF65: 6 | AG65: 0.999999999 | AH65: 0.3989422804
W66: 2.1 | X66: 2.1 | Y66: 0.04398359598 | Z66: 8.1 | AA66: 0.04398359598 | AE66: 0.2 | AF66: 6.2 | AG66: 0.9999999997 | AH66: 0.391042694
W67: 2.2 | X67: 2.2 | Y67: 0.03547459285 | Z67: 8.2 | AA67: 0.03547459285 | AE67: 0.4 | AF67: 6.4 | AG67: 0.9999999999 | AH67: 0.3682701403
W68: 2.3 | X68: 2.3 | Y68: 0.02832703774 | Z68: 8.3 | AA68: 0.02832703774 | AE68: 0.6 | AF68: 6.6 | AG68: =NORMDIST(AF68,$C$4,$C$5,1) -> 1 | AH68: 0.3332246029
W69: 2.4 | X69: 2.4 | Y69: 0.02239453029 | Z69: 8.4 | AA69: 0.02239453029 | AE69: 0.8 | AF69: 6.8 | AG69: 1 | AH69: 0.2896915528
W70: 2.5 | X70: =W70+$C$4 -> 2.5 | Y70: 0.01752830049 | Z70: =W70+$F$4 -> 8.5 | AA70: =NORMDIST(Z70,$F$4,$F$5,0) -> 0.01752830049 | AE70: 1 | AF70: 7 | AG70: 1 | AH70: 0.2419707245
W71: 2.6 | X71: 2.6 | Y71: 0.01358296923 | Z71: 8.6 | AA71: 0.01358296923 | AE71: 1.2 | AF71: 7.2 | AG71: 1 | AH71: 0.194186055
W72: 2.7 | X72: 2.7 | Y72: 0.01042093481 | Z72: 8.7 | AA72: 0.01042093481 | AE72: 1.4 | AF72: 7.4 | AG72: 1 | AH72: 0.1497274656
W73: 2.8 | X73: 2.8 | Y73: =NORMDIST(X73,$C$4,$C$5,0) -> 0.007915451583 | Z73: 8.8 | AA73: 0.007915451583 | AE73: 1.6 | AF73: 7.6 | AG73: 1 | AH73: 0.1109208347
W74: 2.9 | X74: 2.9 | Y74: 0.00595253242 | Z74: 8.9 | AA74: 0.00595253242 | AE74: 1.8 | AF74: 7.8 | AG74: 1 | AH74: 0.0789501583
W75: 3 | X75: 3 | Y75: 0.004431848412 | Z75: 9 | AA75: 0.004431848412 | AE75: 2 | AF75: 8 | AG75: 1 | AH75: 0.05399096651
W76: 3.1 | X76: 3.1 | Y76: 0.003266819056 | Z76: 9.1 | AA76: 0.003266819056 | AE76: 2.2 | AF76: 8.2 | AG76: 1 | AH76: 0.03547459285
W77: 3.2 | X77: 3.2 | Y77: 0.002384088201 | Z77: 9.2 | AA77: 0.002384088201 | AE77: 2.4 | AF77: 8.4 | AG77: 1 | AH77: 0.02239453029
W78: 3.3 | X78: 3.3 | Y78: 0.001722568939 | Z78: 9.3 | AA78: 0.001722568939 | AE78: 2.6 | AF78: 8.6 | AG78: 1 | AH78: 0.01358296923
W79: 3.4 | X79: 3.4 | Y79: 0.001232219168 | Z79: 9.4 | AA79: 0.001232219168 | AE79: 2.8 | AF79: 8.8 | AG79: 1 | AH79: 0.007915451583
W80: 3.5 | X80: 3.5 | Y80: 0.000872682695 | Z80: 9.5 | AA80: 0.000872682695 | AE80: 3 | AF80: 9 | AG80: 1 | AH80: 0.004431848412
W81: 3.6 | X81: 3.6 | Y81: 0.0006119019301 | Z81: 9.6 | AA81: 0.0006119019301 | AE81: 3.2 | AF81: 9.2 | AG81: 1 | AH81: 0.002384088201
W82: 3.7 | X82: 3.7 | Y82: 0.0004247802706 | Z82: 9.7 | AA82: 0.0004247802706 | AE82: 3.4 | AF82: 9.4 | AG82: 1 | AH82: 0.001232219168
W83: 3.8 | X83: 3.8 | Y83: 0.0002919469258 | Z83: 9.8 | AA83: 0.0002919469258 | AE83: 3.6 | AF83: 9.6 | AG83: 1 | AH83: 0.0006119019301
W84: 3.9 | X84: 3.9 | Y84: 0.0001986554714 | Z84: 9.9 | AA84: 0.0001986554714 | AE84: 3.8 | AF84: 9.8 | AG84: 1 | AH84: 0.0002919469258
W85: 4 | X85: 4 | Y85: 0.0001338302258 | Z85: 10 | AA85: 0.0001338302258 | AE85: 4 | AF85: 10 | AG85: 1 | AH85: 0.0001338302258
W86: 4.1 | X86: 4.1 | Y86: 8.926165718e-05 | Z86: 10.1 | AA86: 8.926165718e-05
W87: 4.2 | X87: 4.2 | Y87: 5.894306776e-05 | Z87: 10.2 | AA87: 5.894306776e-05
W88: 4.3 | X88: 4.3 | Y88: 3.853519674e-05 | Z88: 10.3 | AA88: 3.853519674e-05
W89: 4.4 | X89: 4.4 | Y89: 2.494247129e-05 | Z89: 10.4 | AA89: 2.494247129e-05
W90: 4.5 | X90: 4.5 | Y90: 1.598374111e-05 | Z90: 10.5 | AA90: 1.598374111e-05
W91: 4.6 | X91: 4.6 | Y91: 1.014085207e-05 | Z91: 10.6 | AA91: 1.014085207e-05
W92: 4.7 | X92: 4.7 | Y92: 6.369825179e-06 | Z92: 10.7 | AA92: 6.369825179e-06
W93: 4.8 | X93: 4.8 | Y93: 3.961299091e-06 | Z93: 10.8 | AA93: 3.961299091e-06
W94: 4.9 | X94: 4.9 | Y94: 2.438960746e-06 | Z94: 10.9 | AA94: 2.438960746e-06
W95: 5 | X95: 5 | Y95: 1.486719515e-06 | Z95: 11 | AA95: 1.486719515e-06
W96: 5.1 | X96: 5.1 | Y96: 8.972435162e-07 | Z96: 11.1 | AA96: 8.972435162e-07
W97: 5.2 | X97: 5.2 | Y97: 5.361035345e-07 | Z97: 11.2 | AA97: 5.361035345e-07
W98: 5.3 | X98: 5.3 | Y98: 3.171349217e-07 | Z98: 11.3 | AA98: 3.171349217e-07
W99: 5.4 | X99: 5.4 | Y99: 1.857361845e-07 | Z99: 11.4 | AA99: 1.857361845e-07
W100: 5.5 | X100: 5.5 | Y100: 1.076976004e-07 | Z100: 11.5 | AA100: 1.076976004e-07
W101: 5.6 | X101: 5.6 | Y101: 6.1826205e-08 | Z101: 11.6 | AA101: 6.1826205e-08
W102: 5.7 | X102: 5.7 | Y102: 3.513955095e-08 | Z102: 11.7 | AA102: 3.513955095e-08
W103: 5.8 | X103: 5.8 | Y103: 1.977319641e-08 | Z103: 11.8 | AA103: 1.977319641e-08
W104: 5.9 | X104: 5.9 | Y104: 1.101576362e-08 | Z104: 11.9 | AA104: 1.101576362e-08
W105: 6 | X105: 6 | Y105: 6.07588285e-09 | Z105: 12 | AA105: 6.07588285e-09
W106: 6.1 | X106: 6.1 | Y106: 3.317884244e-09 | Z106: 12.1 | AA106: 3.317884244e-09
W107: 6.2 | X107: 6.2 | Y107: 1.793783908e-09 | Z107: 12.2 | AA107: 1.793783908e-09
W108: 6.3 | X108: 6.3 | Y108: 9.60143337e-10 | Z108: 12.3 | AA108: 9.60143337e-10
W109: 6.4 | X109: 6.4 | Y109: 5.088140282e-10 | Z109: 12.4 | AA109: 5.088140282e-10
W110: 6.5 | X110: 6.5 | Y110: 2.669556615e-10 | Z110: 12.5 | AA110: 2.669556615e-10
W111: 6.6 | X111: 6.6 | Y111: 1.386679994e-10 | Z111: 12.6 | AA111: 1.386679994e-10
W112: 6.7 | X112: 6.7 | Y112: 7.131328124e-11 | Z112: 12.7 | AA112: 7.131328124e-11
W113: 6.8 | X113: 6.8 | Y113: 3.630961502e-11 | Z113: 12.8 | AA113: 3.630961502e-11
W114: 6.9 | X114: 6.9 | Y114: 1.830332217e-11 | Z114: 12.9 | AA114: 1.830332217e-11
W115: 7 | X115: 7 | Y115: 9.134720408e-12 | Z115: 13 | AA115: 9.134720408e-12
W116: 7.1 | X116: 7.1 | Y116: 4.513543677e-12 | Z116: 13.1 | AA116: 4.513543677e-12
W117: 7.2 | X117: 7.2 | Y117: 2.207989963e-12 | Z117: 13.2 | AA117: 2.207989963e-12
W118: 7.3 | X118: 7.3 | Y118: 1.069383787e-12 | Z118: 13.3 | AA118: 1.069383787e-12
W119: 7.4 | X119: 7.4 | Y119: 5.127753637e-13 | Z119: 13.4 | AA119: 5.127753637e-13
W120: 7.5 | X120: 7.5 | Y120: 2.434320533e-13 | Z120: 13.5 | AA120: 2.434320533e-13
W121: 7.6 | X121: 7.6 | Y121: 1.14415649e-13 | Z121: 13.6 | AA121: 1.14415649e-13
W122: 7.7 | X122: 7.7 | Y122: 5.324148372e-14 | Z122: 13.7 | AA122: 5.324148372e-14
W123: 7.8 | X123: 7.8 | Y123: 2.452855286e-14 | Z123: 13.8 | AA123: 2.452855286e-14
W124: 7.9 | X124: 7.9 | Y124: 1.118795621e-14 | Z124: 13.9 | AA124: 1.118795621e-14
W125: 8 | X125: 8 | Y125: 5.052271084e-15 | Z125: 14 | AA125: 5.052271084e-15
W126: 8.1 | X126: 8.1 | Y126: 2.258809403e-15 | Z126: 14.1 | AA126: 2.258809403e-15
W127: 8.2 | X127: 8.2 | Y127: 9.998378748e-16 | Z127: 14.2 | AA127: 9.998378748e-16
W128: 8.3 | X128: 8.3 | Y128: 4.381639436e-16 | Z128: 14.3 | AA128: 4.381639436e-16
W129: 8.4 | X129: 8.4 | Y129: 1.901081538e-16 | Z129: 14.4 | AA129: 1.901081538e-16
W130: 8.5 | X130: 8.5 | Y130: 8.166235632e-17 | Z130: 14.5 | AA130: 8.166235632e-17
W131: 8.6 | X131: 8.6 | Y131: 3.472962749e-17 | Z131: 14.6 | AA131: 3.472962749e-17
W132: 8.7 | X132: 8.7 | Y132: 1.462296358e-17 | Z132: 14.7 | AA132: 1.462296358e-17
W133: 8.8 | X133: 8.8 | Y133: 6.09575813e-18 | Z133: 14.8 | AA133: 6.09575813e-18
W134: 8.9 | X134: =W134+$C$4 -> 8.9 | Y134: 2.515805777e-18 | Z134: =W134+$F$4 -> 14.9 | AA134: =NORMDIST(Z134,$F$4,$F$5,0) -> 2.515805777e-18
W135: 9 | X135: 9 | Y135: 1.027977357e-18 | Z135: 15 | AA135: 1.027977357e-18
W136: 9.1 | X136: 9.1 | Y136: 4.158598979e-19 | Z136: 15.1 | AA136: 4.158598979e-19
W137: 9.2 | X137: 9.2 | Y137: =NORMDIST(X137,$C$4,$C$5,0) -> 1.665588032e-19 | Z137: 15.2 | AA137: 1.665588032e-19
W138: 9.3 | X138: 9.3 | Y138: 6.604579861e-20 | Z138: 15.3 | AA138: 6.604579861e-20
W139: 9.4 | X139: 9.4 | Y139: 2.592864701e-20 | Z139: 15.4 | AA139: 2.592864701e-20
W140: 9.5 | X140: 9.5 | Y140: 1.007793539e-20 | Z140: 15.5 | AA140: 1.007793539e-20
W141: 9.6 | X141: 9.6 | Y141: 3.878111932e-21 | Z141: 15.6 | AA141: 3.878111932e-21
W142: 9.7 | X142: 9.7 | Y142: 1.477495493e-21 | Z142: 15.7 | AA142: 1.477495493e-21
W143: 9.8 | X143: 9.8 | Y143: 5.573000023e-22 | Z143: 15.8 | AA143: 5.573000023e-22
W144: 9.9 | X144: 9.9 | Y144: 2.08117682e-22 | Z144: 15.9 | AA144: 2.08117682e-22
W145: 10 | X145: 10 | Y145: 7.694598627e-23 | Z145: 16 | AA145: 7.694598627e-23
V681: Разработка за учебни цели ВК

Sheet u_bracket
A1: Изчисляване на неопределеността при AAS анализ след калибриране по метода на ограничаващите стандарти
M2: Метод на ограничаващите стандарти
A3: ТИП | B3: Вх. Х | C3: стойност | D3: u_s | E3: u_s_r | F3: A3 | G3: A4 | H3: Ax | I3: C3 | J3: C4 | Q3: Cx=(C3(A4-Ax)+C4(Ax-A3))/(A4-A3)
A4: А | B4: A3 | C4: 0.116 | D4: 0.003 | E4: =D4/C4 -> 0.02586206897 | F4: =$C4+D4 -> 0.119 | G4: =$C4 -> 0.116 | H4: =$C4 -> 0.116 | I4: =$C4 -> 0.116 | J4: =$C4 -> 0.116
A5: А | B5: A4 | C5: 0.175 | D5: 0.004 | E5: =D5/C5 -> 0.02285714286 | F5: =$C5 -> 0.175 | G5: =$C5+D5 -> 0.179 | H5: =$C5 -> 0.175 | I5: =$C5 -> 0.175 | J5: =$C5 -> 0.175
A6: А | B6: Ax | C6: 0.138 | D6: 0.002 | E6: =D6/C6 -> 0.01449275362 | F6: =$C6 -> 0.138 | G6: =$C6 -> 0.138 | H6: =$C6+D6 -> 0.14 | I6: =$C6 -> 0.138 | J6: =$C6 -> 0.138
A7: В | B7: C3 | C7: 1 | D7: =L10/100 -> 0.05 | E7: =D7/C7 -> 0.05 | F7: =$C7 -> 1 | G7: =$C7 -> 1 | H7: =$C7 -> 1 | I7: =$C7+D7 -> 1.05 | J7: =$C7 -> 1 | M7: 0 | N7: 0
A8: В | B8: C4 | C8: 1.5 | D8: 0.048 | E8: =D8/C8 -> 0.032 | F8: =$C8 -> 1.5 | G8: =$C8 -> 1.5 | H8: =$C8 -> 1.5 | I8: =$C8 -> 1.5 | J8: =$C8+D8 -> 1.548 | M8: 0.5 | N8: 0.051 | Q8: C3 | R8: Cx | S8: C4
D9: u_c | E9: u_c_r | M9: 1 | N9: 0.116 | Q9: A3 | R9: Ax | S9: A4
B10: Cx= | C10: =(C7*(C5-C6)+C8*(C6-C4))/(C5-C4) -> 1.186440678 | D10: =SQRT(K12) -> 0.04486770388 | E10: =D10/C10 -> 0.0378170647 | F10: =(F7*(F5-F6)+F8*(F6-F4))/(F5-F4) -> 1.169642857 | G10: =(G7*(G5-G6)+G8*(G6-G4))/(G5-G4) -> 1.174603175 | H10: =(H7*(H5-H6)+H8*(H6-H4))/(H5-H4) -> 1.203389831 | I10: =(I7*(I5-I6)+I8*(I6-I4))/(I5-I4) -> 1.21779661 | J10: =(J7*(J5-J6)+J8*(J6-J4))/(J5-J4) -> 1.204338983 | L10: 5 | M10: 1.5 | N10: 0.175
B11: U+- | C11: =D10*2 -> 0.08973540776 | E11: diff | F11: =$C$10-F10 -> 0.01679782082 | G11: =$C$10-G10 -> 0.01183750336 | H11: =$C$10-H10 -> -0.01694915254 | I11: =$C$10-I10 -> -0.0313559322 | J11: =$C$10-J10 -> -0.01789830508 | K11: сума | M11: 2 | N11: 0.224
B12: k=2 | E12: diff^2 | F12: =F11^2 -> 0.0002821667844 | G12: =G11^2 -> 0.0001401264859 | H12: =H11^2 -> 0.0002872737719 | I12: =I11^2 -> 0.0009831944843 | J12: =J11^2 -> 0.0003203493249 | K12: =SUM(F12:J12) -> 0.002013110851
F13: A3 | G13: A4 | H13: Ax | I13: C3 | J13: C4
E14: Принос | F14: =F12/$K$12 -> 0.1401645539 | G14: =G12/$K$12 -> 0.06960693981 | H14: =H12/$K$12 -> 0.1427014174 | I14: =I12/$K$12 -> 0.4883956011 | J14: =J12/$K$12 -> 0.1591314878
T44: C | U44: A
T45: 0 | U45: 0
S46: =B4 -> A3 | T46: =C7 -> 1 | U46: =C4 -> 0.116
S47: =B5 -> A4 | T47: =C8 -> 1.5 | U47: =C5 -> 0.175
S48: =B6 -> Ax | T48: =C10 -> 1.186440678 | U48: =C6 -> 0.138
V681: Разработка за учебни цели ВК

Sheet NORM'dISTR (Au)
A1: Normal distribution PDF Au 14 karat
B2: µ= | C2: =560+(0.2*G2) -> 597 | D2: ‰ | G2: 185 | AM2: x | AN2: x | AO2: P(x) | AP2: F(x) | AR2: x | AS2: P(x)
B3: u_comb= | C3: =0.3*G3 -> 2.1 | D3: ‰ | G3: 7 | AM3: -10 | AN3: =AM3+$C$2 -> 587 | AO3: =NORMDIST(AN3,$C$2,$C$3,FALSE) -> 2.263169353e-06 | AP3: =NORMDIST(AN3,$C$2,$C$3,TRUE) -> 9.588709445e-07 | AR3: =AM3 -> -10 | AS3: =NORMDIST(AR3,0,1,FALSE) -> 7.694598627e-23
AM4: -9.99 | AN4: 587.01 | AO4: 2.315048409e-06 | AP4: 9.817610967e-07 | AR4: =AM4 -> -9.99 | AS4: =NORMDIST(AR4,0,1,FALSE) -> 8.503421447e-23
AM5: -9.98 | AN5: 587.02 | AO5: 2.368063001e-06 | AP5: 1.005175698e-06 | AR5: -9.98 | AS5: 9.396324533e-23
AM6: -9.97 | AN6: 587.03 | AO6: 2.4222367e-06 | AP6: 1.02912622e-06 | AR6: -9.97 | AS6: 1.03819488e-22
Q7: bar - M(X) | AM7: -9.96 | AN7: 587.04 | AO7: 2.477593537e-06 | AP7: 1.053624375e-06 | AR7: -9.96 | AS7: 1.146981275e-22
Q8: =C2 -> 597 | R8: 0 | AM8: -9.95 | AN8: 587.05 | AO8: 2.534158014e-06 | AP8: 1.078682117e-06 | AR8: -9.95 | AS8: 1.267040052e-22
Q9: =C2 -> 597 | R9: =MAX(AO3:AO1742) -> 0.1899725145 | AM9: -9.94 | AN9: 587.06 | AO9: 2.591955105e-06 | AP9: 1.104311644e-06 | AR9: -9.94 | AS9: 1.399525867e-22
AM10: -9.93 | AN10: 587.07 | AO10: 2.651010273e-06 | AP10: 1.130525412e-06 | AR10: -9.93 | AS10: 1.545710249e-22
AM11: -9.92 | AN11: 587.08 | AO11: 2.711349473e-06 | AP11: 1.15733613e-06 | AR11: -9.92 | AS11: 1.70699329e-22
J12: a= | K12: =562.5 -> 562.5 | V12: FALSE | W12: =$K$12 -> 562.5 | X12: 0 | Y12: =$K$14 -> 604.2 | Z12: 0 | AM12: -9.91 | AN12: 587.09 | AO12: 2.772999162e-06 | AP12: 1.18475677e-06 | AR12: -9.91 | AS12: 1.884916481e-22
W13: 562.5 | X13: 0.1 | Y13: 604.2 | Z13: 0.1 | AM13: -9.9 | AN13: 587.1 | AO13: 2.835986312e-06 | AP13: 1.212800571e-06 | AR13: -9.9 | AS13: 2.08117682e-22
J14: (-a)= | K14: 604.2 | W14: 562.5 | X14: 0.2 | Y14: 604.2 | Z14: 0.2 | AM14: -9.89 | AN14: 587.11 | AO14: 2.900338411e-06 | AP14: 1.241481046e-06 | AR14: -9.89 | AS14: 2.297642306e-22
W15: 562.5 | X15: 0.3 | Y15: 604.2 | Z15: 0.3 | AM15: -9.88 | AN15: 587.12 | AO15: 2.966083482e-06 | AP15: 1.270811983e-06 | AR15: -9.88 | AS15: 2.536368954e-22
N16: 336 | W16: 562.5 | X16: 0.4 | Y16: 604.2 | Z16: 0.4 | AM16: -9.87 | AN16: 587.13 | AO16: 3.033250085e-06 | AP16: 1.300807454e-06 | AR16: -9.87 | AS16: 2.799619493e-22
W17: 562.5 | X17: 0.5 | Y17: 604.2 | Z17: 0.5 | AM17: -9.86 | AN17: 587.14 | AO17: 3.10186733e-06 | AP17: 1.33148182e-06 | AR17: -9.86 | AS17: 3.089883885e-22
W18: 562.5 | X18: 0.6 | Y18: 604.2 | Z18: 0.6 | AM18: -9.85 | AN18: 587.15 | AO18: 3.171964885e-06 | AP18: 1.362849735e-06 | AR18: -9.85 | AS18: 3.409901866e-22
W19: 562.5 | X19: 0.7 | Y19: 604.2 | Z19: 0.7 | AM19: -9.84 | AN19: 587.16 | AO19: 3.243572988e-06 | AP19: 1.394926153e-06 | AR19: -9.84 | AS19: 3.762687688e-22
W20: 562.5 | X20: 0.8 | Y20: 604.2 | Z20: 0.8 | AM20: -9.83 | AN20: 587.17 | AO20: 3.316722457e-06 | AP20: 1.427726332e-06 | AR20: -9.83 | AS20: 4.151557283e-22
W21: 562.5 | X21: 0.9 | Y21: 604.2 | Z21: 0.9 | AM21: -9.82 | AN21: 587.18 | AO21: 3.391444698e-06 | AP21: 1.461265844e-06 | AR21: -9.82 | AS21: 4.580158079e-22
D22: NORMDIST(x,mean,standard_dev,FALSE) | W22: 562.5 | X22: 1 | Y22: 604.2 | Z22: 1 | AM22: -9.81 | AN22: 587.19 | AO22: 3.467771716e-06 | AP22: 1.495560576e-06 | AR22: -9.81 | AS22: 5.05250173e-22
F23: =NORMDIST(AN3,$C$2,$C$3,FALSE) -> 2.263169353e-06 | R23: =NORMDIST(-1,0,1,1) -> 0.1586552539 | AM23: -9.8 | AN23: 587.2 | AO23: 3.545736129e-06 | AP23: 1.530626737e-06 | AR23: -9.8 | AS23: 5.573000023e-22
AM24: -9.79 | AN24: 587.21 | AO24: 3.625371173e-06 | AP24: 1.566480867e-06 | AR24: -9.79 | AS24: 6.146504294e-22
C25: NORMINV(probability,mean,standard_dev) | AM25: -9.78 | AN25: 587.22 | AO25: 3.706710717e-06 | AP25: 1.603139842e-06 | AR25: -9.78 | AS25: 6.778348666e-22
AM26: -9.77 | AN26: 587.23 | AO26: 3.789789274e-06 | AP26: 1.640620878e-06 | AR26: -9.77 | AS26: 7.47439749e-22
F27: =NORMINV(0.8413,0,1) -> 0.9998150936 | AM27: -9.76 | AN27: 587.24 | AO27: 3.87464201e-06 | AP27: 1.678941541e-06 | AR27: -9.76 | AS27: 8.241097384e-22
AM28: -9.75 | AN28: 587.25 | AO28: 3.961304759e-06 | AP28: 1.718119751e-06 | AR28: -9.75 | AS28: 9.085534312e-22
AM29: -9.74 | AN29: 587.26 | AO29: 4.049814029e-06 | AP29: 1.758173791e-06 | AR29: -9.74 | AS29: 1.001549619e-21
AM30: -9.73 | AN30: 587.27 | AO30: 4.140207019e-06 | AP30: 1.799122311e-06 | AR30: -9.73 | AS30: 1.103954154e-21
F31: =NORMINV(L19,C2,C3) ->  | AM31: -9.72 | AN31: 587.28 | AO31: 4.232521629e-06 | AP31: 1.840984337e-06 | AR31: -9.72 | AS31: 1.216707475e-21
AM32: -9.71 | AN32: 587.29 | AO32: 4.326796474e-06 | AP32: 1.883779277e-06 | AR32: -9.71 | AS32: 1.340842865e-21
AM33: -9.7 | AN33: 587.3 | AO33: 4.423070891e-06 | AP33: 1.927526931e-06 | AR33: -9.7 | AS33: 1.477495493e-21
AM34: -9.69 | AN34: 587.31 | AO34: 4.521384958e-06 | AP34: 1.972247494e-06 | AR34: -9.69 | AS34: 1.627912338e-21
AM35: -9.68 | AN35: 587.32 | AO35: 4.621779503e-06 | AP35: 2.017961565e-06 | AR35: -9.68 | AS35: 1.793463057e-21
AM36: -9.67 | AN36: 587.33 | AO36: 4.724296119e-06 | AP36: 2.064690158e-06 | AR36: -9.67 | AS36: 1.9756519e-21
AM37: -9.66 | AN37: 587.34 | AO37: 4.828977174e-06 | AP37: 2.112454703e-06 | AR37: -9.66 | AS37: 2.176130761e-21
AM38: -9.65 | AN38: 587.35 | AO38: 4.935865829e-06 | AP38: 2.16127706e-06 | AR38: -9.65 | AS38: 2.39671349e-21
AM39: -9.64 | AN39: 587.36 | AO39: 5.045006047e-06 | AP39: 2.211179524e-06 | AR39: -9.64 | AS39: 2.639391557e-21
AM40: -9.63 | AN40: 587.37 | AO40: 5.156442609e-06 | AP40: 2.262184835e-06 | AR40: -9.63 | AS40: 2.906351224e-21
AM41: -9.62 | AN41: 587.38 | AO41: 5.27022113e-06 | AP41: 2.314316183e-06 | AR41: -9.62 | AS41: 3.199992352e-21
AM42: -9.61 | AN42: 587.39 | AO42: 5.386388067e-06 | AP42: 2.367597219e-06 | AR42: -9.61 | AS42: 3.522948988e-21
AM43: -9.6 | AN43: 587.4 | AO43: 5.504990741e-06 | AP43: 2.422052063e-06 | AR43: -9.6 | AS43: 3.878111932e-21
AM44: -9.59 | AN44: 587.41 | AO44: 5.626077345e-06 | AP44: 2.477705313e-06 | AR44: -9.59 | AS44: 4.268653422e-21
AM45: -9.58 | AN45: 587.42 | AO45: 5.749696965e-06 | AP45: 2.534582053e-06 | AR45: -9.58 | AS45: 4.698054184e-21
AM46: -9.57 | AN46: 587.43 | AO46: 5.875899589e-06 | AP46: 2.592707863e-06 | AR46: -9.57 | AS46: 5.170133032e-21
AM47: -9.56 | AN47: 587.44 | AO47: 6.004736126e-06 | AP47: 2.652108825e-06 | AR47: -9.56 | AS47: 5.689079271e-21
AM48: -9.55 | AN48: 587.45 | AO48: 6.136258422e-06 | AP48: 2.712811538e-06 | AR48: -9.55 | AS48: 6.259488169e-21
AM49: -9.54 | AN49: 587.46 | AO49: 6.270519273e-06 | AP49: 2.774843122e-06 | AR49: -9.54 | AS49: 6.886399777e-21
AM50: -9.53 | AN50: 587.47 | AO50: 6.407572442e-06 | AP50: 2.838231231e-06 | AR50: -9.53 | AS50: 7.5753414e-21
AM51: -9.52 | AN51: 587.48 | AO51: 6.547472678e-06 | AP51: 2.903004061e-06 | AR51: -9.52 | AS51: 8.332374084e-21
AM52: -9.51 | AN52: 587.49 | AO52: 6.690275728e-06 | AP52: 2.96919036e-06 | AR52: -9.51 | AS52: 9.164143464e-21
AM53: -9.5 | AN53: 587.5 | AO53: 6.836038356e-06 | AP53: 3.03681944e-06 | AR53: -9.5 | AS53: 1.007793539e-20
AM54: -9.49 | AN54: 587.51 | AO54: 6.984818362e-06 | AP54: 3.105921185e-06 | AR54: -9.49 | AS54: 1.10817368e-20
AM55: -9.48 | AN55: 587.52 | AO55: 7.136674595e-06 | AP55: 3.176526061e-06 | AR55: -9.48 | AS55: 1.218430222e-20
AM56: -9.47 | AN56: 587.53 | AO56: 7.291666974e-06 | AP56: 3.248665131e-06 | AR56: -9.47 | AS56: 1.33952266e-20
AM57: -9.46 | AN57: 587.54 | AO57: 7.449856502e-06 | AP57: 3.322370058e-06 | AR57: -9.46 | AS57: 1.472502489e-20
AM58: -9.45 | AN58: 587.55 | AO58: 7.611305289e-06 | AP58: 3.397673125e-06 | AR58: -9.45 | AS58: 1.618521902e-20
AM59: -9.44 | AN59: 587.56 | AO59: 7.776076566e-06 | AP59: 3.474607239e-06 | AR59: -9.44 | AS59: 1.778843309e-20
AM60: -9.43 | AN60: 587.57 | AO60: 7.944234706e-06 | AP60: 3.553205945e-06 | AR60: -9.43 | AS60: 1.954849731e-20
AM61: -9.42 | AN61: 587.58 | AO61: 8.115845242e-06 | AP61: 3.633503441e-06 | AR61: -9.42 | AS61: 2.148056171e-20
AM62: -9.41 | AN62: 587.59 | AO62: 8.290974884e-06 | AP62: 3.715534581e-06 | AR62: -9.41 | AS62: 2.360122033e-20
AM63: -9.4 | AN63: 587.6 | AO63: 8.469691543e-06 | AP63: 3.799334895e-06 | AR63: -9.4 | AS63: 2.592864701e-20
AM64: -9.39 | AN64: 587.61 | AO64: 8.652064347e-06 | AP64: 3.884940598e-06 | AR64: -9.39 | AS64: 2.84827437e-20
AM65: -9.38 | AN65: 587.62 | AO65: 8.838163662e-06 | AP65: 3.972388603e-06 | AR65: -9.38 | AS65: 3.128530253e-20
AM66: -9.37 | AN66: 587.63 | AO66: 9.02806111e-06 | AP66: 4.061716532e-06 | AR66: -9.37 | AS66: 3.436018288e-20
AM67: -9.36 | AN67: =AM67+$C$2 -> 587.64 | AO67: =NORMDIST(AN67,$C$2,$C$3,FALSE) -> 9.221829595e-06 | AP67: =NORMDIST(AN67,$C$2,$C$3,TRUE) -> 4.152962729e-06 | AR67: -9.36 | AS67: 3.773350474e-20
AM68: -9.35 | AN68: 587.65 | AO68: 9.419543319e-06 | AP68: 4.246166274e-06 | AR68: =AM68 -> -9.35 | AS68: =NORMDIST(AR68,0,1,FALSE) -> 4.143385995e-20
AM69: -9.34 | AN69: 587.66 | AO69: 9.621277803e-06 | AP69: 4.341366998e-06 | AR69: -9.34 | AS69: 4.549254288e-20
AM70: -9.33 | AN70: 587.67 | AO70: 9.827109913e-06 | AP70: 4.438605489e-06 | AR70: -9.33 | AS70: 4.994380232e-20
AM71: -9.32 | AN71: 587.68 | AO71: 1.003711788e-05 | AP71: 4.537923115e-06 | AR71: -9.32 | AS71: 5.482511652e-20
AM72: -9.31 | AN72: 587.69 | AO72: 1.02513813e-05 | AP72: 4.639362031e-06 | AR72: -9.31 | AS72: 6.017749346e-20
AM73: -9.3 | AN73: 587.7 | AO73: 1.046998122e-05 | AP73: 4.742965196e-06 | AR73: -9.3 | AS73: 6.604579861e-20
AM74: -9.29 | AN74: 587.71 | AO74: 1.069300007e-05 | AP74: 4.848776385e-06 | AR74: -9.29 | AS74: 7.24791127e-20
AM75: -9.28 | AN75: 587.72 | AO75: 1.092052177e-05 | AP75: 4.956840207e-06 | AR75: -9.28 | AS75: 7.953112223e-20
AM76: -9.27 | AN76: 587.73 | AO76: 1.115263169e-05 | AP76: 5.067202115e-06 | AR76: -9.27 | AS76: 8.726054555e-20
AM77: -9.26 | AN77: 587.74 | AO77: 1.138941672e-05 | AP77: 5.179908424e-06 | AR77: -9.26 | AS77: 9.573159782e-20
AM78: -9.25 | AN78: 587.75 | AO78: 1.163096527e-05 | AP78: 5.295006327e-06 | AR78: -9.25 | AS78: 1.050144983e-19
AM79: -9.24 | AN79: 587.76 | AO79: 1.187736728e-05 | AP79: 5.412543908e-06 | AR79: -9.24 | AS79: 1.151860238e-19
AM80: -9.23 | AN80: 587.77 | AO80: 1.212871429e-05 | AP80: 5.532570156e-06 | AR80: -9.23 | AS80: 1.263301123e-19
AM81: -9.22 | AN81: 587.78 | AO81: 1.238509942e-05 | AP81: 5.655134987e-06 | AR81: -9.22 | AS81: 1.385385214e-19
AM82: -9.21 | AN82: 587.79 | AO82: 1.264661742e-05 | AP82: 5.780289254e-06 | AR82: -9.21 | AS82: 1.519115464e-19
AM83: -9.2 | AN83: 587.8 | AO83: 1.29133647e-05 | AP83: 5.908084766e-06 | AR83: -9.2 | AS83: 1.665588032e-19
AM84: -9.19 | AN84: 587.81 | AO84: 1.318543931e-05 | AP84: 6.038574306e-06 | AR84: -9.19 | AS84: 1.826000824e-19
AM85: -9.18 | AN85: 587.82 | AO85: 1.346294104e-05 | AP85: 6.171811643e-06 | AR85: -9.18 | AS85: 2.001662797e-19
AM86: -9.17 | AN86: 587.83 | AO86: 1.374597139e-05 | AP86: 6.307851555e-06 | AR86: -9.17 | AS86: 2.194004107e-19
AM87: -9.16 | AN87: 587.84 | AO87: 1.403463361e-05 | AP87: 6.446749843e-06 | AR87: -9.16 | AS87: 2.404587169e-19
AM88: -9.15 | AN88: 587.85 | AO88: 1.432903275e-05 | AP88: 6.58856335e-06 | AR88: -9.15 | AS88: 2.635118714e-19
AM89: -9.14 | AN89: 587.86 | AO89: 1.462927565e-05 | AP89: 6.733349977e-06 | AR89: -9.14 | AS89: 2.887462918e-19
AM90: -9.13 | AN90: 587.87 | AO90: 1.493547101e-05 | AP90: 6.881168704e-06 | AR90: -9.13 | AS90: 3.163655724e-19
AM91: -9.12 | AN91: 587.88 | AO91: 1.524772937e-05 | AP91: 7.032079607e-06 | AR91: -9.12 | AS91: 3.46592043e-19
AM92: -9.11 | AN92: 587.89 | AO92: 1.55661632e-05 | AP92: 7.186143876e-06 | AR92: -9.11 | AS92: 3.796684681e-19
AM93: -9.1 | AN93: 587.9 | AO93: 1.589088686e-05 | AP93: 7.343423837e-06 | AR93: -9.1 | AS93: 4.158598979e-19
AM94: -9.09 | AN94: 587.91 | AO94: 1.622201668e-05 | AP94: 7.503982967e-06 | AR94: -9.09 | AS94: 4.554556834e-19
AM95: -9.08 | AN95: 587.92 | AO95: 1.655967099e-05 | AP95: 7.667885919e-06 | AR95: -9.08 | AS95: 4.987716719e-19
AM96: -9.07 | AN96: 587.93 | AO96: 1.690397011e-05 | AP96: 7.835198536e-06 | AR96: -9.07 | AS96: 5.461525977e-19
AM97: -9.06 | AN97: 587.94 | AO97: 1.725503643e-05 | AP97: 8.005987878e-06 | AR97: -9.06 | AS97: 5.979746846e-19
AM98: -9.05 | AN98: 587.95 | AO98: 1.76129944e-05 | AP98: 8.180322237e-06 | AR98: -9.05 | AS98: 6.546484799e-19
AM99: -9.04 | AN99: 587.96 | AO99: 1.797797058e-05 | AP99: 8.35827116e-06 | AR99: -9.04 | AS99: 7.166219389e-19
AM100: -9.03 | AN100: 587.97 | AO100: 1.835009369e-05 | AP100: 8.539905471e-06 | AR100: -9.03 | AS100: 7.84383783e-19
AM101: -9.02 | AN101: 587.98 | AO101: 1.87294946e-05 | AP101: 8.725297292e-06 | AR101: -9.02 | AS101: 8.584671538e-19
AM102: -9.01 | AN102: 587.99 | AO102: 1.911630641e-05 | AP102: 8.914520066e-06 | AR102: -9.01 | AS102: 9.394535906e-19
AM103: -9 | AN103: 588 | AO103: 1.951066444e-05 | AP103: 9.107648574e-06 | AR103: -9 | AS103: 1.027977357e-18
AM104: -8.99 | AN104: 588.01 | AO104: 1.991270631e-05 | AP104: 9.304758967e-06 | AR104: -8.99 | AS104: 1.124730151e-18
AM105: -8.98 | AN105: 588.02 | AO105: 2.032257192e-05 | AP105: 9.50592878e-06 | AR105: -8.98 | AS105: 1.230466223e-18
AM106: -8.97 | AN106: 588.03 | AO106: 2.074040354e-05 | AP106: 9.711236959e-06 | AR106: -8.97 | AS106: 1.346007954e-18
AM107: -8.96 | AN107: 588.04 | AO107: 2.116634579e-05 | AP107: 9.920763886e-06 | AR107: -8.96 | AS107: 1.472251911e-18
AM108: -8.95 | AN108: 588.05 | AO108: 2.160054574e-05 | AP108: 1.01345914e-05 | AR108: -8.95 | AS108: 1.610175438e-18
AM109: -8.94 | AN109: 588.06 | AO109: 2.204315289e-05 | AP109: 1.035280282e-05 | AR109: -8.94 | AS109: 1.760843826e-18
AM110: -8.93 | AN110: 588.07 | AO110: 2.249431921e-05 | AP110: 1.057548299e-05 | AR110: -8.93 | AS110: 1.925418103e-18
AM111: -8.92 | AN111: 588.08 | AO111: 2.295419924e-05 | AP111: 1.080271825e-05 | AR111: -8.92 | AS111: 2.105163509e-18
AM112: -8.91 | AN112: 588.09 | AO112: 2.342295004e-05 | AP112: 1.103459654e-05 | AR112: -8.91 | AS112: 2.301458703e-18
AM113: -8.9 | AN113: 588.1 | AO113: 2.390073129e-05 | AP113: 1.127120736e-05 | AR113: -8.9 | AS113: 2.515805777e-18
AM114: -8.89 | AN114: 588.11 | AO114: 2.438770531e-05 | AP114: 1.151264181e-05 | AR114: -8.89 | AS114: 2.749841134e-18
AM115: -8.88 | AN115: 588.12 | AO115: 2.488403708e-05 | AP115: 1.175899265e-05 | AR115: -8.88 | AS115: 3.005347316e-18
AM116: -8.87 | AN116: 588.13 | AO116: 2.538989432e-05 | AP116: 1.20103543e-05 | AR116: -8.87 | AS116: 3.284265848e-18
AM117: -8.86 | AN117: 588.14 | AO117: 2.590544748e-05 | AP117: 1.226682286e-05 | AR117: -8.86 | AS117: 3.588711199e-18
AM118: -8.85 | AN118: 588.15 | AO118: 2.643086984e-05 | AP118: 1.252849615e-05 | AR118: -8.85 | AS118: 3.920985953e-18
AM119: -8.84 | AN119: 588.16 | AO119: 2.696633749e-05 | AP119: 1.279547374e-05 | AR119: -8.84 | AS119: 4.283597272e-18
AM120: -8.83 | AN120: 588.17 | AO120: 2.751202941e-05 | AP120: 1.306785698e-05 | AR120: -8.83 | AS120: 4.6792748e-18
AM121: -8.82 | AN121: 588.18 | AO121: 2.80681275e-05 | AP121: 1.334574902e-05 | AR121: -8.82 | AS121: 5.110990089e-18
AM122: -8.81 | AN122: 588.19 | AO122: 2.863481663e-05 | AP122: 1.362925483e-05 | AR122: -8.81 | AS122: 5.581977703e-18
AM123: -8.8 | AN123: 588.2 | AO123: 2.921228467e-05 | AP123: 1.391848128e-05 | AR123: -8.8 | AS123: 6.09575813e-18
AM124: -8.79 | AN124: 588.21 | AO124: 2.980072253e-05 | AP124: 1.421353709e-05 | AR124: -8.79 | AS124: 6.656162656e-18
AM125: -8.78 | AN125: 588.22 | AO125: 3.040032424e-05 | AP125: 1.451453294e-05 | AR125: -8.78 | AS125: 7.267360373e-18
AM126: -8.77 | AN126: 588.23 | AO126: 3.101128695e-05 | AP126: 1.482158145e-05 | AR126: -8.77 | AS126: 7.933887486e-18
AM127: -8.76 | AN127: 588.24 | AO127: 3.163381099e-05 | AP127: 1.513479722e-05 | AR127: -8.76 | AS127: 8.660679127e-18
AM128: -8.75 | AN128: 588.25 | AO128: 3.226809995e-05 | AP128: 1.545429688e-05 | AR128: -8.75 | AS128: 9.453103882e-18
AM129: -8.74 | AN129: 588.26 | AO129: 3.291436065e-05 | AP129: 1.578019912e-05 | AR129: -8.74 | AS129: 1.031700124e-17
AM130: -8.73 | AN130: 588.27 | AO130: 3.357280327e-05 | AP130: 1.61126247e-05 | AR130: -8.73 | AS130: 1.125872226e-17
AM131: -8.72 | AN131: =AM131+$C$2 -> 588.28 | AO131: =NORMDIST(AN131,$C$2,$C$3,FALSE) -> 3.424364134e-05 | AP131: =NORMDIST(AN131,$C$2,$C$3,TRUE) -> 1.64516965e-05 | AR131: -8.72 | AS131: 1.228517365e-17
AM132: -8.71 | AN132: 588.29 | AO132: 3.492709182e-05 | AP132: 1.679753957e-05 | AR132: =AM132 -> -8.71 | AS132: =NORMDIST(AR132,0,1,FALSE) -> 1.340386557e-17
AM133: -8.7 | AN133: 588.3 | AO133: 3.562337512e-05 | AP133: 1.715028112e-05 | AR133: -8.7 | AS133: 1.462296358e-17
AM134: -8.69 | AN134: 588.31 | AO134: 3.633271519e-05 | AP134: 1.751005059e-05 | AR134: -8.69 | AS134: 1.595134482e-17
AM135: -8.68 | AN135: 588.32 | AO135: 3.705533951e-05 | AP135: 1.78769797e-05 | AR135: -8.68 | AS135: 1.739865911e-17
AM136: -8.67 | AN136: 588.33 | AO136: 3.779147921e-05 | AP136: 1.825120243e-05 | AR136: -8.67 | AS136: 1.897539501e-17
AM137: -8.66 | AN137: 588.34 | AO137: 3.854136907e-05 | AP137: 1.863285512e-05 | AR137: -8.66 | AS137: 2.069295162e-17
AM138: -8.65 | AN138: 588.35 | AO138: 3.930524757e-05 | AP138: 1.902207644e-05 | AR138: -8.65 | AS138: 2.256371626e-17
AM139: -8.64 | AN139: 588.36 | AO139: 4.0083357e-05 | AP139: 1.941900751e-05 | AR139: -8.64 | AS139: 2.460114879e-17
AM140: -8.63 | AN140: 588.37 | AO140: 4.087594342e-05 | AP140: 1.982379184e-05 | AR140: -8.63 | AS140: 2.681987295e-17
AM141: -8.62 | AN141: 588.38 | AO141: 4.16832568e-05 | AP141: 2.023657546e-05 | AR141: -8.62 | AS141: 2.92357753e-17
AM142: -8.61 | AN142: 588.39 | AO142: 4.250555104e-05 | AP142: 2.065750691e-05 | AR142: -8.61 | AS142: 3.186611249e-17
AM143: -8.6 | AN143: 588.4 | AO143: 4.334308399e-05 | AP143: 2.108673728e-05 | AR143: -8.6 | AS143: 3.472962749e-17
AM144: -8.59 | AN144: 588.41 | AO144: 4.419611758e-05 | AP144: 2.152442026e-05 | AR144: -8.59 | AS144: 3.784667543e-17
AM145: -8.58 | AN145: 588.42 | AO145: 4.506491779e-05 | AP145: 2.197071219e-05 | AR145: -8.58 | AS145: 4.123936002e-17
AM146: -8.57 | AN146: 588.43 | AO146: 4.594975479e-05 | AP146: 2.242577207e-05 | AR146: -8.57 | AS146: 4.49316812e-17
AM147: -8.56 | AN147: 588.44 | AO147: 4.685090291e-05 | AP147: 2.288976165e-05 | AR147: -8.56 | AS147: 4.894969513e-17
AM148: -8.55 | AN148: 588.45 | AO148: 4.77686408e-05 | AP148: 2.336284543e-05 | AR148: -8.55 | AS148: 5.332168736e-17
AM149: -8.54 | AN149: 588.46 | AO149: 4.870325137e-05 | AP149: 2.384519071e-05 | AR149: -8.54 | AS149: 5.807836043e-17
AM150: -8.53 | AN150: 588.47 | AO150: 4.965502196e-05 | AP150: 2.433696766e-05 | AR150: -8.53 | AS150: 6.32530369e-17
AM151: -8.52 | AN151: 588.48 | AO151: 5.062424432e-05 | AP151: 2.483834932e-05 | AR151: -8.52 | AS151: 6.888187911e-17
AM152: -8.51 | AN152: 588.49 | AO152: 5.161121472e-05 | AP152: 2.53495117e-05 | AR152: -8.51 | AS152: 7.500412715e-17
AM153: -8.5 | AN153: 588.5 | AO153: 5.261623397e-05 | AP153: 2.587063378e-05 | AR153: -8.5 | AS153: 8.166235632e-17
AM154: -8.49 | AN154: 588.51 | AO154: 5.363960751e-05 | AP154: 2.640189756e-05 | AR154: -8.49 | AS154: 8.890275578e-17
AM155: -8.48 | AN155: 588.52 | AO155: 5.468164547e-05 | AP155: 2.694348814e-05 | AR155: -8.48 | AS155: 9.677543009e-17
AM156: -8.47 | AN156: 588.53 | AO156: 5.574266271e-05 | AP156: 2.749559373e-05 | AR156: -8.47 | AS156: 1.053347254e-16
AM157: -8.46 | AN157: 588.54 | AO157: 5.682297893e-05 | AP157: 2.805840573e-05 | AR157: -8.46 | AS157: 1.146395824e-16
AM158: -8.45 | AN158: 588.55 | AO158: 5.792291866e-05 | AP158: 2.863211872e-05 | AR158: -8.45 | AS158: 1.24753918e-16
AM159: -8.44 | AN159: 588.56 | AO159: 5.904281141e-05 | AP159: 2.921693061e-05 | AR159: -8.44 | AS159: 1.357470382e-16
AM160: -8.43 | AN160: 588.57 | AO160: 6.018299167e-05 | AP160: 2.981304258e-05 | AR160: -8.43 | AS160: 1.476940849e-16
AM161: -8.42 | AN161: 588.58 | AO161: 6.134379901e-05 | AP161: 3.04206592e-05 | AR161: -8.42 | AS161: 1.606765183e-16
AM162: -8.41 | AN162: 588.59 | AO162: 6.252557813e-05 | AP162: 3.103998846e-05 | AR162: -8.41 | AS162: 1.747826393e-16
AM163: -8.4 | AN163: 588.6 | AO163: 6.372867894e-05 | AP163: 3.167124183e-05 | AR163: -8.4 | AS163: 1.901081538e-16
AM164: -8.39 | AN164: 588.61 | AO164: 6.495345661e-05 | AP164: 3.23146343e-05 | AR164: -8.39 | AS164: 2.067567829e-16
AM165: -8.38 | AN165: 588.62 | AO165: 6.620027167e-05 | AP165: 3.297038442e-05 | AR165: -8.38 | AS165: 2.248409224e-16
AM166: -8.37 | AN166: 588.63 | AO166: 6.746949004e-05 | AP166: 3.363871441e-05 | AR166: -8.37 | AS166: 2.444823555e-16
AM167: -8.36 | AN167: 588.64 | AO167: 6.876148316e-05 | AP167: 3.431985014e-05 | AR167: -8.36 | AS167: 2.65813023e-16
AM168: -8.35 | AN168: 588.65 | AO168: 7.007662797e-05 | AP168: 3.501402124e-05 | AR168: -8.35 | AS168: 2.889758558e-16
AM169: -8.34 | AN169: 588.66 | AO169: 7.141530707e-05 | AP169: 3.572146114e-05 | AR169: -8.34 | AS169: 3.141256737e-16
AM170: -8.33 | AN170: 588.67 | AO170: 7.277790874e-05 | AP170: 3.644240713e-05 | AR170: -8.33 | AS170: 3.414301573e-16
AM171: -8.32 | AN171: 588.68 | AO171: 7.416482705e-05 | AP171: 3.717710037e-05 | AR171: -8.32 | AS171: 3.710708967e-16
AM172: -8.31 | AN172: 588.69 | AO172: 7.55764619e-05 | AP172: 3.792578605e-05 | AR172: -8.31 | AS172: 4.032445254e-16
AM173: -8.3 | AN173: 588.7 | AO173: 7.701321909e-05 | AP173: 3.868871335e-05 | AR173: -8.3 | AS173: 4.381639436e-16
AM174: -8.29 | AN174: 588.71 | AO174: 7.847551046e-05 | AP174: 3.946613555e-05 | AR174: -8.29 | AS174: 4.760596401e-16
AM175: -8.28 | AN175: 588.72 | AO175: 7.996375388e-05 | AP175: 4.025831007e-05 | AR175: -8.28 | AS175: 5.171811193e-16
AM176: -8.27 | AN176: 588.73 | AO176: 8.147837339e-05 | AP176: 4.106549855e-05 | AR176: -8.27 | AS176: 5.617984416e-16
AM177: -8.26 | AN177: 588.74 | AO177: 8.301979925e-05 | AP177: 4.188796689e-05 | AR177: -8.26 | AS177: 6.10203886e-16
AM178: -8.25 | AN178: 588.75 | AO178: 8.458846801e-05 | AP178: 4.272598534e-05 | AR178: -8.25 | AS178: 6.627137456e-16
AM179: -8.24 | AN179: 588.76 | AO179: 8.618482262e-05 | AP179: 4.357982854e-05 | AR179: -8.24 | AS179: 7.196702642e-16
AM180: -8.23 | AN180: 588.77 | AO180: 8.780931249e-05 | AP180: 4.444977558e-05 | AR180: -8.23 | AS180: 7.814437269e-16
AM181: -8.22 | AN181: 588.78 | AO181: 8.946239358e-05 | AP181: 4.533611009e-05 | AR181: -8.22 | AS181: 8.484347155e-16
AM182: -8.21 | AN182: 588.79 | AO182: 9.114452846e-05 | AP182: 4.623912029e-05 | AR182: -8.21 | AS182: 9.210765424e-16
AM183: -8.2 | AN183: 588.8 | AO183: 9.285618641e-05 | AP183: 4.715909907e-05 | AR183: -8.2 | AS183: 9.998378748e-16
AM184: -8.19 | AN184: 588.81 | AO184: 9.459784352e-05 | AP184: 4.809634402e-05 | AR184: -8.19 | AS184: 1.085225568e-15
AM185: -8.18 | AN185: 588.82 | AO185: 9.636998274e-05 | AP185: 4.905115754e-05 | AR185: -8.18 | AS185: 1.177787716e-15
AM186: -8.17 | AN186: 588.83 | AO186: 9.817309397e-05 | AP186: 5.002384691e-05 | AR186: -8.17 | AS186: 1.27811695e-15
AM187: -8.16 | AN187: 588.84 | AO187: 0.0001000076742 | AP187: 5.101472432e-05 | AR187: -8.16 | AS187: 1.386853985e-15
AM188: -8.15 | AN188: 588.85 | AO188: 0.0001018742275 | AP188: 5.202410697e-05 | AR188: -8.15 | AS188: 1.504691452e-15
AM189: -8.14 | AN189: 588.86 | AO189: 0.0001037732651 | AP189: 5.305231715e-05 | AR189: -8.14 | AS189: 1.632378023e-15
AM190: -8.13 | AN190: 588.87 | AO190: 0.0001057053058 | AP190: 5.409968228e-05 | AR190: -8.13 | AS190: 1.770722865e-15
AM191: -8.12 | AN191: 588.88 | AO191: 0.0001076708754 | AP191: 5.516653503e-05 | AR191: -8.12 | AS191: 1.920600431e-15
AM192: -8.11 | AN192: 588.89 | AO192: 0.0001096705076 | AP192: 5.625321333e-05 | AR192: -8.11 | AS192: 2.082955631e-15
AM193: -8.1 | AN193: 588.9 | AO193: 0.0001117047433 | AP193: 5.736006052e-05 | AR193: -8.1 | AS193: 2.258809403e-15
AM194: -8.09 | AN194: 588.91 | AO194: 0.0001137741313 | AP194: 5.848742537e-05 | AR194: -8.09 | AS194: 2.449264711e-15
AM195: -8.08 | AN195: =AM195+$C$2 -> 588.92 | AO195: =NORMDIST(AN195,$C$2,$C$3,FALSE) -> 0.0001158792282 | AP195: =NORMDIST(AN195,$C$2,$C$3,TRUE) -> 5.963566218e-05 | AR195: -8.08 | AS195: 2.655513014e-15
AM196: -8.07 | AN196: 588.93 | AO196: 0.0001180205982 | AP196: 6.080513085e-05 | AR196: =AM196 -> -8.07 | AS196: =NORMDIST(AR196,0,1,FALSE) -> 2.878841228e-15
AM197: -8.06 | AN197: 588.94 | AO197: 0.0001201988136 | AP197: 6.199619696e-05 | AR197: -8.06 | AS197: 3.120639228e-15
AM198: -8.05 | AN198: 588.95 | AO198: 0.0001224144548 | AP198: 6.320923187e-05 | AR198: -8.05 | AS198: 3.382407932e-15
AM199: -8.04 | AN199: 588.96 | AO199: 0.0001246681102 | AP199: 6.444461277e-05 | AR199: -8.04 | AS199: 3.665767995e-15
AM200: -8.03 | AN200: 588.97 | AO200: 0.0001269603766 | AP200: 6.570272278e-05 | AR200: -8.03 | AS200: 3.972469183e-15
... 1803 more rows
